Workbook

Sheet Intro
G1: One-shot Introduction to Orthogonal Regression
G2: by
G3: Humberto Barreto
G4: hbarreto@depauw,edu
A6: Orthogonal regression is related to ordinary least squares (OLS) regression in that both minimize the sum of squared residuals (SSR).
A7: It is most commonly known as total least squares (TLS) (there are other names), but orthogonal regression clearly tells you what is going on.
A8: From Greek, ortho means right (like orthodox) and gonal means angle (like diagonal) and that is exactly what orthogonal regression does.
A10: Orthogonal regression is an alternative to OLS and this workbook will explain how it fits a line and explore how it performs under varying data generating processes (DGP).
A12: This Excel workbook is completely self-contained and all you have to do is read (scrolling down as needed), follow instructions (especially obey the CLICK commands), and pay close attention.
A14: Student Background:
B15: This material is accessible to you only if you know what regression analysis is and can interpret coefficients and regression statistics (such as SE, RMSE, and R2).
B16: Remember that the OLS fitted line is found by minimizing the SSR, but there are many other ways (recipes) to fit lines to data.
B17: The Gauss-Markov Theorem says that OLS is BLUE if certain conditions apply, such as a DGP with fixed Xs and independently, identically distributed errors (iid).
B19: If the statements above mean nothing to you, this workbook is not appropriate for your knowledge level.
A21: Software Requirements:
B22: You need Microsoft EXCEL, WINDOWS DESKTOP version 2007 or greater to get full functionality from this file.
C23: The file can be opened with Mac Excel, but it uses Visual Basic code that may not be fully supported on a Mac.
C24: This file will NOT work with a browser-version of Excel because it contains macros. You must open it with a DESKTOP-version of Excel.
B26: You must be sure to Enable Content or the buttons and code in this macro-enabled workbook will not work.
A28: Let's see if you are ready to go -- CLICK the button below.
A31: If the button above does not display a message on your screen when you click it, please close the workbook and open it again, making sure that you Enable Content.
B32: Search "enable macros" in Excel's Help for more information on how to do this.
B33: You can also click the link below for help from the internet:
B34: www.google.com/search?q=excel+enable+macros
A36: You also need Excel's Solver. Click the Data tab in the menu and make sure it is in the top-right corner.
B37: If Solver is not installed, press alt (release), then t (release), then I to bring up the Add-ins Manager and check Solver and click OK.
A39: Once you get the Click to Test button (above) to work and you have Solver installed, you are ready to begin.
A41: You will reveal new sheets in the workbook as you proceed through the material. Your job is to read carefully and pay attention to the charts and think about what you are doing.
A43: Keep an eye out for bold, red text -- it always means you are supposed to do something!
A45: Also, answer the questions as best you can -- they are not meant to test you, but to keep you focused and engaged. The answer is usually pretty easy or revealed right after the question.
A47: CLICK on the button below to proceed to the Geometry sheet when you are ready.

Sheet Geometry (hidden)
A1: As they say, a picture is worth a thousand words.
I4: OLS: Orange
I5: Residuals measured as VERTICAL distances.
I6: So, the residual of the third point is a little over 2 units of Y (5 - a little less than 3).
I8: Orthogonal regression: Green
I9: Residuals measured as PERPENDICULAR distances.
I10: The residual is the CLOSEST distance to the fitted line
I11: That green line is at a RIGHT ANGLE (90 degrees) from the blue point to the fitted line.

Sheet OLS (hidden)
A1: OLS | B1: X | C1: Y | E1: OLS b1 | F1: OLS b0 | H1: 0 | I1: OLS b0 | J1: OLS Pred | K1: OLS res | L1: OLS res^2 | N1: The OLS residual is simply actual - predicted.
B2: 1 | C2: 2 | E2: =LINEST(C2:C6,B2:B6,1,1) -> 0.2 | F2: 2.24 | H2: 0.5 | I2: OLS b1 | J2: =$H$1+$H$2*B2 -> 0.5 | K2: =C2-J2 -> 1.5 | L2: =K2^2 -> 2.25 | N2: Click on cell K2 to see its formula (K3:K7 are the same)
B3: 2 | C3: 2.1 | E3: 0.4506291898 | F3: 1.494567942 | J3: =$H$1+$H$2*B3 -> 1 | K3: =C3-J3 -> 1.1 | L3: =K3^2 -> 1.21 | N3: This sheet offers FOUR ways to run an OLS regression:
B4: 3 | C4: 5 | E4: 0.06161429452 | F4: 1.42501462 | J4: =$H$1+$H$2*B4 -> 1.5 | K4: =C4-J4 -> 3.5 | L4: 12.25 | N4: 1) LINEST -- OLS b1 in cell E2
B5: 4 | C5: 2.1 | E5: 0.1969796454 | F5: 3 | J5: =$H$1+$H$2*B5 -> 2 | K5: =C5-J5 -> 0.1 | L5: 0.01 | N5: 2) Matrix algebra -- OLS b1 in cell A28
B6: 5 | C6: 3 | E6: 0.4 | F6: 6.092 | G6: OLS SSR | J6: =$H$1+$H$2*B6 -> 2.5 | K6: =C6-J6 -> 0.5 | L6: 0.25 | N6: Run Solver (in the Data tab) to see how Solver's optimization algorithm can be used to minmize SSR
L7: =SUM(L2:L6) -> 15.97 | M7: SSR | N7: 3) Solver -- OLS b1 in cell H2
A8: Include an intercept term for matrix algebra computations: | N8: The orange fitted line in the chart is now minimizing SSR
B9: int | C9: X | D9: Y | N9: Right-click a blue dot in the chart and ADD a Trendline, report the equation
B10: 1 | C10: =B2 -> 1 | D10: =C2 -> 2 | N10: 4) Trendline
B11: 1 | C11: =B3 -> 2 | D11: 2.1
B12: 1 | C12: 3 | D12: 5 | O12: Q1: Is the Trendline you added the same as the orange line? What does that mean?
B13: 1 | C13: 4 | D13: 2.1
B14: 1 | C14: 5 | D14: 3
B16: (X'X)
B17: =MMULT(TRANSPOSE(B10:C14),B10:C14) -> 5 | C17: 15
B18: 15 | C18: 55
B19: (X'X)-1
B20: =MINVERSE(B17:C18) -> 1.1 | C20: -0.3
B21: -0.3 | C21: 0.1
B23: (X'X)-1X'
B24: =MMULT(B20:C21,TRANSPOSE(B10:C14)) -> 0.8 | C24: 0.5 | D24: 0.2 | E24: -0.1 | F24: -0.4
B25: -0.2 | C25: -0.1 | D25: 0 | E25: 0.1 | F25: 0.2
B26: (X'X)-1X'y
B27: =MMULT(B24:F25,D10:D14) -> 2.24 | C27: OLS b0
B28: 0.2 | C28: OLS b1 | D28: agrees with LINEST

Sheet Ortho (hidden)
A1: Ortho reg | B1: X | C1: Y | E1: OLS b1 | F1: OLS b0 | H1: 2.23999235 | I1: OLS b0 | J1: OLS Pred | K1: OLS res | L1: OLS res^2 | N1: 0.5 | O1: Ortho b0 | P1: Ortho Pred | Q1: Ortho res | R1: Ortho res^2
B2: 1 | C2: 2 | E2: =LINEST(C2:C6,B2:B6,1,1) -> 0.2 | F2: 2.24 | H2: 0.2000020429 | I2: OLS b1 | J2: =$H$1+$H$2*B2 -> 2.439994393 | K2: =C2-J2 -> -0.4399943925 | L2: =K2^2 -> 0.1935950655 | N2: 0.5 | O2: Ortho b1 | P2: =$N$1+$N$2*B2 -> 1 | Q2: =(C2-P2)/(SQRT(1+$N$2^2)) -> 0.894427191 | R2: =Q2^2 -> 0.8
B3: 2 | C3: 2.1 | E3: 0.4506291898 | F3: 1.494567942 | J3: =$H$1+$H$2*B3 -> 2.639996435 | K3: =C3-J3 -> -0.5399964354 | L3: =K3^2 -> 0.2915961503 | P3: =$N$1+$N$2*B3 -> 1.5 | Q3: =(C3-P3)/(SQRT(1+$N$2^2)) -> 0.5366563146 | R3: =Q3^2 -> 0.288
B4: 3 | C4: 5 | E4: 0.06161429452 | F4: 1.42501462 | J4: =$H$1+$H$2*B4 -> 2.839998478 | K4: =C4-J4 -> 2.160001522 | L4: 4.665606574 | P4: 2 | Q4: 2.683281573 | R4: 7.2
B5: 4 | C5: 2.1 | E5: 0.1969796454 | F5: 3 | J5: =$H$1+$H$2*B5 -> 3.040000521 | K5: =C5-J5 -> -0.9400005213 | L5: 0.88360098 | P5: 2.5 | Q5: -0.3577708764 | R5: 0.128
B6: 5 | C6: 3 | E6: 0.4 | F6: 6.092 | G6: OLS SSR | J6: =$H$1+$H$2*B6 -> 3.240002564 | K6: =C6-J6 -> -0.2400025642 | L6: 0.0576012308 | P6: 3 | Q6: 0 | R6: 0
L7: =SUM(L2:L6) -> 6.092 | M7: SSR | R7: =SUM(R2:R6) -> 8.416 | S7: SSR
A8: Include an intercept term for matrix algebra computations: | N8: To fit the Orthogonal regression line, we need to modify the residual
B9: int | C9: X | D9: Y | N9: Click on cell Q2 to see how the residual is being divided by an adjustment term (Q3:Q7 are the same)
B10: 1 | C10: =B2 -> 1 | D10: =C2 -> 2 | N10: It's complicated, but the intuition is that we need to use the Pythagorean Theorem, hence the SQRT function
B11: 1 | C11: =B3 -> 2 | D11: 2.1 | N11: We don't really care right now about the mechanics of actually computing the orthogonal fitted line.
B12: 1 | C12: 3 | D12: 5 | N12: Software will do that for us. We do want to understand that it is a different recipe than OLS.
B13: 1 | C13: 4 | D13: 2.1 | N13: Run Solver to fit the green orthogonal fitted line.
B14: 1 | C14: 5 | D14: 3
B16: (X'X) | O16: Q2: Are OLS and orthogonal regression different? Why?
B17: =MMULT(TRANSPOSE(B10:C14),B10:C14) -> 5 | C17: 15
B18: 15 | C18: 55
B19: (X'X)-1
B20: =MINVERSE(B17:C18) -> 1.1 | C20: -0.3
B21: -0.3 | C21: 0.1
B23: (X'X)-1X'
B24: =MMULT(B20:C21,TRANSPOSE(B10:C14)) -> 0.8 | C24: 0.5 | D24: 0.2 | E24: -0.1 | F24: -0.4
B25: -0.2 | C25: -0.1 | D25: 0 | E25: 0.1 | F25: 0.2
B26: (X'X)-1X'y
B27: =MMULT(B24:F25,D10:D14) -> 2.24 | C27: OLS b0
B28: 0.2 | C28: OLS b1 | D28: agrees with LINEST

Sheet Doc (hidden)
A1: 2025-09-02
A2: Ideas
A4: Start with SolverOLS
B5: Shows how to compute OLS fitted line with Solver, LINEST, matrix
A7: SolverOrtho shows Solver for orthogonal reg
B8: Ortho residual = (actual - pred)/sqrt(1+b1^2)
B9: It can be found by the eigenvector of the X-Y var-covar matrix
B10: Should be possible to make a function out of this (SEE BELOW)
B11: Could extend to multivar case but not needed if just a demo of OLS v Ortho
A13: LiveOLSOrtho is fixed Xs and LiveOLSOrtho (2) is random Xs (Name Changed to LiveOLSOrthoEIV)
B14: Puzzling sim results: Ortho OLS biased with fixed Xs? Does even worse with random Xs?
B15: THIS HAPPENED BECAUSE DGP WAS WRONG, I HAD Y DEPENDING ON OBS X, NOT TRUE X
A16: Ordered a book to get some help on this.
A18: 2025-09-11
A19: ChatGPT a big help, book is OK
A20: The total least squares problem : computational aspects and analysis by Sabine van Huffel; J Vandewalle
A22: Key is the DGP, for ortho, y is generated by true X, not observed X
A24: LiveOLSOrtho shows OLS better when no error in fixed Xs (classical model)
A26: LiveOrthoOLSEIV has measurement error in X (errors in variables) so observed X is random
A27: Results show clearly that OLS b1 and est SE are biased and that Ortho is unbiased
A29: The function orthoreg(known Y, known X) produces intercept and slope for orthogonal bivariate regression

Sheet SolverOLS (hidden)
B1: X | C1: Y | E1: =LINEST(C2:C6,B2:B6,1,1) -> 9.369566558 | F1: 19.47478069 | H1: 19.47481737 | I1: OLS b0 | J1: OLS Pred | K1: OLS res | L1: OLS res^2
B2: 1 | C2: 29.25610623 | E2: 2.733281562 | F2: 9.065269387 | H2: 9.369555449 | I2: OLS b1 | J2: =$H$1+$H$2*B2 -> 28.84437282 | K2: =C2-J2 -> 0.4117334112 | L2: =K2^2 -> 0.1695244019
B3: 2 | C3: 32.47815942 | E3: 0.7966222534 | F3: 8.643395222 | J3: =$H$1+$H$2*B3 -> 38.21392827 | K3: =C3-J3 -> -5.735768849 | L3: =K3^2 -> 32.89904429
B4: 3 | C4: 59.11698495 | E4: 11.75087639 | F4: 3 | J4: 47.58348372 | K4: 11.53350122 | L4: 133.0216505
B5: 4 | C5: 49.44626502 | E5: 877.8877749 | F5: 224.1248429 | J5: 56.95303917 | K5: -7.506774152 | L5: 56.35165818
B6: 5 | C6: 67.61988623 | J6: 66.32259462 | K6: 1.297291611 | L6: 1.682965524
C7: =10*X+RAND*20 | L7: =SUM(L2:L6) -> 224.1248429
B8: =AVERAGE(B2:B6) -> 3 | C8: =AVERAGE(C2:C6) -> 47.58348037
B9: centered (subtract means)
B10: x | C10: y | E10: =LINEST(C11:C15,B11:B15,1,1) -> 9.369566558 | F10: 0
B11: =B2-B$8 -> -2 | C11: =C2-C$8 -> -18.32737414 | E11: 2.733281562 | F11: 3.865443854
B12: =B3-B$8 -> -1 | C12: -15.10532095 | E12: 0.7966222534 | F12: 8.643395222
B13: 0 | C13: 11.53350458 | E13: 11.75087639 | F13: 3
B14: 1 | C14: 1.862784647 | E14: 877.8877749 | F14: 224.1248429
B15: 2 | C15: 20.03640586 | E15: to recover the intercept: avg y - b1*avg x
E16: =C8-E10*B8 -> 19.47478069 | F16: check
A17: int | B17: X | C17: Y
A18: 1 | B18: =B2 -> 1 | C18: =C2 -> 29.25610623
A19: 1 | B19: =B3 -> 2 | C19: 32.47815942
A20: 1 | B20: 3 | C20: 59.11698495
A21: 1 | B21: 4 | C21: 49.44626502
A22: 1 | B22: 5 | C22: 67.61988623
A24: (X'X)
A25: =MMULT(TRANSPOSE(A18:B22),A18:B22) -> 5 | B25: 15
A26: 15 | B26: 55
A27: (X'X)-1
A28: =MINVERSE(A25:B26) -> 1.1 | B28: -0.3
A29: -0.3 | B29: 0.1
A31: (X'X)-1X'
A32: =MMULT(A28:B29,TRANSPOSE(A18:B22)) -> 0.8 | B32: 0.5 | C32: 0.2 | D32: -0.1 | E32: -0.4
A33: -0.2 | B33: -0.1 | C33: 0 | D33: 0.1 | E33: 0.2
A34: (X'X)-1X'y
A35: =MMULT(A32:E33,C18:C22) -> 19.47478069
A36: 9.369566558 | B36: check

Sheet SolverOrtho (hidden)
B1: X | C1: Y | E1: =LINEST(C2:C6,B2:B6,1,1) -> 0.5706943782 | F1: 2.811297434 | H1: 19.47481737 | I1: OLS b0 | J1: OLS Pred | K1: OLS res | L1: OLS res^2 | N1: 1.744985559 | O1: Ortho b0 | P1: Ortho Pred | Q1: Ortho res | R1: Ortho res^2 | T1: Ortho Pred | U1: Ortho res | V1: Ortho res^2 | X1: xx | Y1: xy | Z1: yx | AA1: yy | AC1: x-avgx | AD1: y-avgy
B2: 1 | C2: 3.800325538 | E2: 0.4422055753 | F2: 1.466629974 | H2: 9.369555449 | I2: OLS b1 | J2: =$H$1+$H$2*B2 -> 28.84437282 | K2: =C2-J2 -> -25.04404728 | L2: =K2^2 -> 627.2043044 | N2: 0.9261334799 | O2: Ortho b1 | P2: =$N$1+$N$2*B2 -> 2.671119039 | Q2: =(C2-P2)/(SQRT(1+$N$2^2)) -> 0.8284815936 | R2: =Q2^2 -> 0.6863817509 | T2: =$N$1+$N$2*B2 -> 2.671119039 | U2: =(C2-T2)/(SQRT(1+$N$2^2)) -> 0.8284815936 | V2: =U2^2 -> 0.6863817509 | X2: =(B2-$B$8)*(B2-$B$8) -> 4 | Y2: =(B2-$B$8)*(C2-$C$8) -> 1.44611006 | Z2: =(C2-$C$8)*(B2-$B$8) -> 1.44611006 | AA2: =(C2-$C$8)*(C2-$C$8) -> 0.5228085764 | AC2: =B2-B$8 -> -2 | AD2: =C2-C$8 -> -0.72305503
B3: 2 | C3: 2.281129383 | E3: 0.356989568 | F3: 1.398376812 | J3: =$H$1+$H$2*B3 -> 38.21392827 | K3: =C3-J3 -> -35.93279889 | L3: =K3^2 -> 1291.166036 | P3: =$N$1+$N$2*B3 -> 3.597252519 | Q3: =(C3-P3)/(SQRT(1+$N$2^2)) -> -0.9656194806 | R3: =Q3^2 -> 0.9324209813 | T3: =$N$1+$N$2*B3 -> 3.597252519 | U3: =(C3-T3)/(SQRT(1+$N$2^2)) -> -0.9656194806 | V3: =U3^2 -> 0.9324209813 | X3: =(B3-$B$8)*(B3-$B$8) -> 1 | Y3: =(B3-$B$8)*(C3-$C$8) -> 2.242251186 | Z3: =(C3-$C$8)*(B3-$B$8) -> 2.242251186 | AA3: =(C3-$C$8)*(C3-$C$8) -> 5.02769038 | AC3: =B3-B$8 -> -1 | AD3: =C3-C$8 -> -2.242251186
B4: 3 | C4: 6.16482487 | E4: 1.665554166 | F4: 3 | J4: 47.58348372 | K4: -41.41865885 | L4: 1715.505301 | P4: 4.523385999 | Q4: 1.204298675 | R4: 1.4503353 | T4: 4.523385999 | U4: 1.204298675 | V4: 1.4503353 | X4: 0 | Y4: 0 | Z4: 0 | AA4: 2.694339394 | AC4: 0 | AD4: 1.641444301
B5: 4 | C5: 5.152521861 | E5: 3.256920733 | F5: 5.866373126 | J5: 56.95303917 | K5: -51.80051731 | L5: 2683.293593 | P5: 5.449519479 | Q5: -0.2179026244 | R5: 0.04748155374 | T5: 5.449519479 | U5: -0.2179026244 | V5: 0.04748155374 | X5: 1 | Y5: 0.6291412924 | Z5: 0.6291412924 | AA5: 0.3958187658 | AC5: 1 | AD5: 0.6291412924
B6: 5 | C6: 5.21810119 | J6: 66.32259462 | K6: -61.10449343 | L6: 3733.759117 | P6: 6.375652959 | Q6: -0.8492780852 | R6: 0.7212732659 | T6: 6.375652959 | U6: -0.8492780852 | V6: 0.7212732659 | X6: 4 | Y6: 1.389441244 | Z6: 1.389441244 | AA6: 0.4826367427 | AC6: 2 | AD6: 0.6947206221
C7: =10*X+RAND*20 | L7: =SUM(L2:L6) -> 10050.92835 | R7: =SUM(R2:R6) -> 3.837892851 | V7: =SUM(V2:V6) -> 3.837892851 | X7: =SUM(X2:X6) -> 10 | Y7: =SUM(Y2:Y6) -> 5.706943782 | Z7: 5.706943782 | AA7: 9.123293859 | AC7: Z'Z
B8: =AVERAGE(B2:B6) -> 3 | C8: =AVERAGE(C2:C6) -> 4.523380568 | D8: averages | X8: =X7/4 -> 2.5 | Y8: =Y7/4 -> 1.426735946 | Z8: 1.426735946 | AA8: 2.280823465 | AC8: =MMULT(TRANSPOSE(AC2:AD6),AC2:AD6) -> 10 | AD8: 5.706943782
B9: centered (subtract means) | AC9: 5.706943782 | AD9: 9.123293859
B10: x | C10: y | E10: =LINEST(C11:C15,B11:B15,1,1) -> 0.5706943782 | F10: -3.552713679e-16 | Y10: Var-cov matrix of X and Y | AC10: 1/4Z'Z
B11: =B2-B$8 -> -2 | C11: =C2-C$8 -> -0.72305503 | E11: 0.4422055753 | F11: 0.625373122 | Y11: =X8 -> 2.5 | Z11: =Y8 -> 1.426735946 | AC11: =AC8/4 -> 2.5 | AD11: =AD8/4 -> 1.426735946
B12: =B3-B$8 -> -1 | C12: -2.242251186 | E12: 0.356989568 | F12: 1.398376812 | Y12: =Z8 -> 1.426735946 | Z12: =AA8 -> 2.280823465 | AC12: =AC9/4 -> 1.426735946 | AD12: =AD9/4 -> 2.280823465 | AE12: check
B13: 0 | C13: 1.641444301 | E13: 1.665554166 | F13: 3 | X13: eigenvector gives Ortho OLS b1
B14: 1 | C14: 0.6291412924 | E14: 3.256920733 | F14: 5.866373126 | Q14: =SQRT(1+X16^2) -> 1.414213562 | R14: perpendicular | X14: =MatEigenvector_max(Y11:Z12) -> 1 | Y14: 0.9261351101 | AC14: =SQRT(AC11) -> 1.58113883 | AD14: sqrt vax(x)
B15: 2 | C15: 0.6947206221 | E15: to recover the intercept: avg y - b1*avg x | Q15: =K4/Q14 -> -29.28741454 | R15: perpendicular/vertical | AC15: =_xlfn.STDEV.S(B2:B6) -> 1.58113883 | AD15: sample SD Excel formula
E16: =C8-E10*B8 -> 2.811297434 | F16: check | X16: =1/X14 -> 1 | Y16: CHECK! | AA16: by orthoreg function!
A17: int | B17: X | C17: Y | Q17: Key is that fitted has a perpendicular line that is -1/b1 | AB17: CHECK!
A18: 1 | B18: =B2 -> 1 | C18: =C2 -> 3.800325538 | Q18: You compute that distance as hypotenuse of a right triangle | X18: =C8-X16*B8 -> 1.523380568 | Y18: CHECK! | AB18: CHECK!
A19: 1 | B19: =B3 -> 2 | C19: 2.281129383 | Q19: This makes Ortho residual = (yi - y-hat)/(sqrt(1+b1^2))
A20: 1 | B20: 3 | C20: 6.16482487
A21: 1 | B21: 4 | C21: 5.152521861
A22: 1 | B22: 5 | C22: 5.21810119 | Y22: Produced by ChatGPT
Y23: different numerical example (look at the axes)
A24: (X'X)
A25: =MMULT(TRANSPOSE(A18:B22),A18:B22) -> 5 | B25: 15
A26: 15 | B26: 55 | E26: var-covar of coefficients
A27: (X'X)-1 | E27: s^2(X'X)-1
A28: =MINVERSE(A25:B26) -> 1.1 | B28: -0.3 | E28: =$F$12^2*A28 -> 2.15100348 | F28: =$F$12^2*B28 -> -0.5866373126
A29: -0.3 | B29: 0.1 | E29: =$F$12^2*A29 -> -0.5866373126 | F29: =$F$12^2*B29 -> 0.1955457709 | G29: =SQRT(F29) -> 0.4422055753 | H29: check
A31: (X'X)-1X'
A32: =MMULT(A28:B29,TRANSPOSE(A18:B22)) -> 0.8 | B32: 0.5 | C32: 0.2 | D32: -0.1 | E32: -0.4
A33: -0.2 | B33: -0.1 | C33: 0 | D33: 0.1 | E33: 0.2
A34: (X'X)-1X'y
A35: =MMULT(A32:E33,C18:C22) -> 2.811297434
A36: 0.5706943782 | B36: check
Q47: damn, so the chart with x axis 1,2,3,4 is
Q48: supper misleading.
Q49: The ortho residual REALLY is tiny b/c
Q50: fitted line is so steep.
Q51: You can draw a perpendicular to the line
Q52: that is almost horizontal.

Sheet MCSim6 (hidden)
A1: Results of Monte Carlo Simulation | AL1: LiveOLSOrtho!$E$1 | AM1: LiveOLSOrtho!$H$16
A2: Sample Number | B2: LiveOLSOrtho!$E$1 | C2: LiveOLSOrtho!$H$16 | F2: Simulation Stats | AH2: -3500 | AK2: -3500 | AL2: 0 | AM2: 0
A3: 1 | B3: 10.51269854 | C3: 19.24748425 | F3: 1000 | G3: repetitions | AH3: -3400 | AK3: -3500 | AL3: 0 | AM3: 1
A4: 2 | B4: 7.478853624 | C4: 9.192483584 | F4: 0.9999996051 | G4: secs | I4: LiveOLSOrtho!$E$1 | K4: LiveOLSOrtho!$H$16 | M4: Notes | AH4: -3300 | AK4: -3400 | AL4: 0 | AM4: 1
A5: 3 | B5: 11.85026006 | C5: 22.26793308 | I5: Average | J5: 9.975153568 | K5: Average | L5: 14.3574001 | M5: OLS wins, Ortho biased | AH5: -3200 | AK5: -3400 | AL5: 0 | AM5: 0
A6: 4 | B6: 17.31183647 | C6: 23.5529773 | I6: SD | J6: 4.719790243 | K6: SD | L6: 113.7611236 | AH6: -3100 | AK6: -3300 | AL6: 0 | AM6: 0
A7: 5 | B7: 8.361196837 | C7: 22.8043729 | I7: Max | J7: 25.74324425 | K7: Max | L7: 267.543763 | AH7: -3000 | AK7: -3300 | AL7: 0 | AM7: 0
A8: 6 | B8: 6.29627369 | C8: 19.47344021 | I8: Min | J8: -4.545369903 | K8: Min | L8: -3499.440062 | AH8: -2900 | AK8: -3200 | AL8: 0 | AM8: 0
A9: 7 | B9: 6.30405247 | C9: 8.543690971 | AH9: -2800 | AK9: -3200 | AL9: 0 | AM9: 0
A10: 8 | B10: 12.36633205 | C10: 13.54500383 | AH10: -2700 | AK10: -3100 | AL10: 0 | AM10: 0
A11: 9 | B11: 13.17943588 | C11: 17.11280312 | AH11: -2600 | AK11: -3100 | AL11: 0 | AM11: 0
A12: 10 | B12: 12.86237916 | C12: 14.97254518 | AH12: -2500 | AK12: -3000 | AL12: 0 | AM12: 0
A13: 11 | B13: 14.49120945 | C13: 17.64392978 | AH13: -2400 | AK13: -3000 | AL13: 0 | AM13: 0
A14: 12 | B14: 10.69629189 | C14: 14.53731589 | AH14: -2300 | AK14: -2900 | AL14: 0 | AM14: 0
A15: 13 | B15: 8.413091579 | C15: 8.952354584 | AH15: -2200 | AK15: -2900 | AL15: 0 | AM15: 0
A16: 14 | B16: 14.50167947 | C16: 16.73498189 | AH16: -2100 | AK16: -2800 | AL16: 0 | AM16: 0
A17: 15 | B17: 5.652574307 | C17: 21.4631026 | AH17: -2000 | AK17: -2800 | AL17: 0 | AM17: 0
A18: 16 | B18: 9.805598584 | C18: 17.22491715 | AH18: -1900 | AK18: -2700 | AL18: 0 | AM18: 0
A19: 17 | B19: 2.516008448 | C19: 29.74210051 | F19: 1 | AH19: -1800 | AK19: -2700 | AL19: 0 | AM19: 0
A20: 18 | B20: 12.0889157 | C20: 12.31104657 | AH20: -1700 | AK20: -2600 | AL20: 0 | AM20: 0
A21: 19 | B21: 13.66514165 | C21: 15.69439817 | AH21: -1600 | AK21: -2600 | AL21: 0 | AM21: 0
A22: 20 | B22: 15.34092221 | C22: 24.05925274 | AH22: -1500 | AK22: -2500 | AL22: 0 | AM22: 0
A23: 21 | B23: 13.14199805 | C23: 21.25737231 | AH23: -1400 | AK23: -2500 | AL23: 0 | AM23: 0
A24: 22 | B24: 9.87197911 | C24: 11.87373143 | AH24: -1300 | AK24: -2400 | AL24: 0 | AM24: 0
A25: 23 | B25: 5.934390143 | C25: 14.15161148 | AH25: -1200 | AK25: -2400 | AL25: 0 | AM25: 0
A26: 24 | B26: 5.88754528 | C26: 18.90944504 | AH26: -1100 | AK26: -2300 | AL26: 0 | AM26: 0
A27: 25 | B27: 10.36183847 | C27: 19.07472319 | AH27: -1000 | AK27: -2300 | AL27: 0 | AM27: 0
A28: 26 | B28: 12.79817932 | C28: 14.60382263 | AH28: -900 | AK28: -2200 | AL28: 0 | AM28: 0
A29: 27 | B29: 9.883529622 | C29: 10.60073206 | AH29: -800 | AK29: -2200 | AL29: 0 | AM29: 0
A30: 28 | B30: 16.78182428 | C30: 20.36177007 | AH30: -700 | AK30: -2100 | AL30: 0 | AM30: 0
A31: 29 | B31: -1.25612986 | C31: -36.39452243 | AH31: -600 | AK31: -2100 | AL31: 0 | AM31: 0
A32: 30 | B32: 8.256953167 | C32: 11.26600739 | AH32: -500 | AK32: -2000 | AL32: 0 | AM32: 0
A33: 31 | B33: 12.29131448 | C33: 17.01471229 | AH33: -400 | AK33: -2000 | AL33: 0 | AM33: 0
A34: 32 | B34: 6.629309194 | C34: 30.07551822 | AH34: -300 | AK34: -1900 | AL34: 0 | AM34: 0
A35: 33 | B35: 19.01501318 | C35: 21.88406264 | AH35: -200 | AK35: -1900 | AL35: 0 | AM35: 0
A36: 34 | B36: 14.19798067 | C36: 17.87010725 | AH36: -100 | AK36: -1800 | AL36: 0 | AM36: 0
A37: 35 | B37: 5.190409104 | C37: 22.6773756 | AH37: 0 | AK37: -1800 | AL37: 0 | AM37: 0
A38: 36 | B38: 6.302533821 | C38: 13.30670019 | AH38: 100 | AK38: -1700 | AL38: 0 | AM38: 0
A39: 37 | B39: -1.813940237 | C39: -3.36540088 | AK39: -1700 | AL39: 0 | AM39: 0
A40: 38 | B40: 10.60184614 | C40: 21.43297294 | AK40: -1600 | AL40: 0 | AM40: 0
A41: 39 | B41: 15.75259723 | C41: 20.74723036 | AK41: -1600 | AL41: 0 | AM41: 0
A42: 40 | B42: 14.00504626 | C42: 18.58488308 | AK42: -1500 | AL42: 0 | AM42: 0
A43: 41 | B43: 14.32946643 | C43: 16.96448013 | AK43: -1500 | AL43: 0 | AM43: 0
A44: 42 | B44: 12.98134087 | C44: 16.8375089 | AK44: -1400 | AL44: 0 | AM44: 0
A45: 43 | B45: 16.04290018 | C45: 20.04860869 | AK45: -1400 | AL45: 0 | AM45: 0
A46: 44 | B46: 12.64656985 | C46: 26.83961433 | AK46: -1300 | AL46: 0 | AM46: 0
A47: 45 | B47: 5.538295521 | C47: 6.39986334 | AK47: -1300 | AL47: 0 | AM47: 0
A48: 46 | B48: 17.2000949 | C48: 30.9080611 | AK48: -1200 | AL48: 0 | AM48: 0
A49: 47 | B49: 2.150322041 | C49: 33.74406768 | AK49: -1200 | AL49: 0 | AM49: 0
A50: 48 | B50: 12.92424959 | C50: 22.73165412 | AK50: -1100 | AL50: 0 | AM50: 0
A51: 49 | B51: 15.03055105 | C51: 15.42309857 | AK51: -1100 | AL51: 0 | AM51: 0
A52: 50 | B52: 6.817000043 | C52: 7.330853058 | AK52: -1000 | AL52: 0 | AM52: 0
A53: 51 | B53: 9.470464887 | C53: 9.650453783 | AK53: -1000 | AL53: 0 | AM53: 0
A54: 52 | B54: 3.936677531 | C54: 25.76823043 | AK54: -900 | AL54: 0 | AM54: 0
A55: 53 | B55: 16.79394808 | C55: 17.57541614 | AK55: -900 | AL55: 0 | AM55: 0
A56: 54 | B56: 5.088044783 | C56: 7.578574653 | AK56: -800 | AL56: 0 | AM56: 0
A57: 55 | B57: 16.68503041 | C57: 18.2781794 | AK57: -800 | AL57: 0 | AM57: 0
A58: 56 | B58: 10.11437177 | C58: 13.05867122 | AK58: -700 | AL58: 0 | AM58: 0
A59: 57 | B59: 11.05557645 | C59: 12.63446632 | AK59: -700 | AL59: 0 | AM59: 0
A60: 58 | B60: 7.56470281 | C60: 19.1556625 | AK60: -600 | AL60: 0 | AM60: 0
A61: 59 | B61: 9.669935783 | C61: 27.94817011 | AK61: -600 | AL61: 0 | AM61: 0
A62: 60 | B62: 4.640988113 | C62: 14.94948554 | AK62: -500 | AL62: 0 | AM62: 0
A63: 61 | B63: 8.868497961 | C63: 19.8286969 | AK63: -500 | AL63: 0 | AM63: 0
A64: 62 | B64: 10.82885731 | C64: 24.93312124 | AK64: -400 | AL64: 0 | AM64: 0
A65: 63 | B65: 21.729997 | C65: 26.39250607 | AK65: -400 | AL65: 0 | AM65: 1
A66: 64 | B66: 11.33671933 | C66: 15.33055923 | AK66: -300 | AL66: 0 | AM66: 1
A67: 65 | B67: 6.725143965 | C67: 16.32396042 | AK67: -300 | AL67: 0 | AM67: 1
A68: 66 | B68: 8.48223064 | C68: 12.96105607 | AK68: -200 | AL68: 0 | AM68: 1
A69: 67 | B69: 11.53405573 | C69: 23.99130553 | AK69: -200 | AL69: 0 | AM69: 3
A70: 68 | B70: 8.338938035 | C70: 10.8452134 | AK70: -100 | AL70: 0 | AM70: 3
A71: 69 | B71: 13.02709079 | C71: 17.89575787 | AK71: -100 | AL71: 22 | AM71: 16
A72: 70 | B72: 13.26733743 | C72: 19.18135676 | AK72: 0 | AL72: 22 | AM72: 16
A73: 71 | B73: 0.2705393573 | C73: 111.5712384 | AK73: 0 | AL73: 978 | AM73: 971
A74: 72 | B74: 11.80608905 | C74: 13.28088434 | AK74: 100 | AL74: 978 | AM74: 971
A75: 73 | B75: 12.58612288 | C75: 29.88236239 | AK75: 100 | AL75: 0 | AM75: 5
A76: 74 | B76: 8.174532652 | C76: 15.22612765 | AK76: 200 | AM76: 5
A77: 75 | B77: 5.364271482 | C77: 24.14205101 | AK77: 200 | AM77: 2
A78: 76 | B78: 2.326098983 | C78: 17.08015432 | AK78: 300 | AM78: 2
A79: 77 | B79: 12.97692633 | C79: 14.24679833 | AK79: 300 | AM79: 0
A80: 78 | B80: 13.76788555 | C80: 15.92722213
A81: 79 | B81: 4.594868767 | C81: 13.85659848
A82: 80 | B82: 16.80574001 | C82: 17.6973401
A83: 81 | B83: 10.6765512 | C83: 31.47569554
A84: 82 | B84: 14.15820724 | C84: 19.1608527
A85: 83 | B85: 2.154614942 | C85: 20.43035826
A86: 84 | B86: 18.08259213 | C86: 19.11955079
A87: 85 | B87: 5.841162867 | C87: 15.64050989
A88: 86 | B88: -0.8584721314 | C88: -349.5948751
A89: 87 | B89: 12.70879886 | C89: 21.47526406
A90: 88 | B90: 10.71213725 | C90: 15.00597822
A91: 89 | B91: 8.25622105 | C91: 29.13044275
A92: 90 | B92: 9.814921167 | C92: 12.17839138
A93: 91 | B93: 13.57128856 | C93: 18.90789428
A94: 92 | B94: 11.3912113 | C94: 18.59211685
A95: 93 | B95: 8.708217236 | C95: 11.30851172
A96: 94 | B96: 8.584847456 | C96: 13.17769167
A97: 95 | B97: 8.478766644 | C97: 9.141814827
A98: 96 | B98: 13.19575992 | C98: 18.74762549
A99: 97 | B99: 9.006995833 | C99: 11.67569039
A100: 98 | B100: 6.106067362 | C100: 28.74468056
A101: 99 | B101: 18.67273185 | C101: 20.00279738
A102: 100 | B102: 11.37460544 | C102: 21.37579486
A103: Only the first 100 repetitions are displayed on this worksheet.

Sheet CEM (hidden)
A1: Classical Econometric Model DGP: Y = b0 + b1X + e~N(0,sigma), fixed Xs | N1: We can't use Solver for a sim because we need instant update of the new solution for new Ys.
A2: 0 | B2: beta0 | N2: This workbook has a way to get the orthogonal regression coefficients without Solver.
A3: 1 | B3: beta1 | N3: The computation is quite advanced.
A4: 1 | B4: sigma | N4: Below is a brief explanation of how the ortho coefficients are computed
C5: X | D5: Y | E5: OLS b1 | F5: =LINEST(D6:D10,C6:C10,1,1) -> 1.076127246 | G5: -0.01877331821 | I5: xx | J5: xy | K5: yx | L5: yy | N5: and the orthoreg(known Ys, known Xs) user-defined array function is in cells I29:I30.
C6: 1 | D6: =beta0+beta1*C6+_xlfn.NORM.INV(RAND(),0,sigma) -> 1.742909311 | F6: 0.2021755461 | G6: 0.6705404283 | I6: =(C6-$C$12)*(C6-$C$12) -> 4 | J6: =(C6-$C$12)*(D6-$D$12) -> 2.933398217 | K6: =(D6-$D$12)*(C6-$C$12) -> 2.933398217 | L6: =(D6-$D$12)*(D6-$D$12) -> 2.151206274
C7: 2 | D7: =beta0+beta1*C7+_xlfn.NORM.INV(RAND(),0,sigma) -> 1.562028529 | F7: 0.9042498036 | G7: 0.639335213 | I7: =(C7-$C$12)*(C7-$C$12) -> 1 | J7: =(C7-$C$12)*(D7-$D$12) -> 1.64757989 | K7: =(D7-$D$12)*(C7-$C$12) -> 1.64757989 | L7: =(D7-$D$12)*(D7-$D$12) -> 2.714519494 | N7: We use the variance-covariance matrix and then something called an eigenvector to compute the coefficients.
C8: 3 | D8: =beta0+beta1*C8+_xlfn.NORM.INV(RAND(),0,sigma) -> 2.678442377 | F8: 28.33152842 | G8: 3 | I8: =(C8-$C$12)*(C8-$C$12) -> 0 | J8: =(C8-$C$12)*(D8-$D$12) -> 0 | K8: =(D8-$D$12)*(C8-$C$12) -> 0 | L8: =(D8-$D$12)*(D8-$D$12) -> 0.2821373637
C9: 4 | D9: =beta0+beta1*C9+_xlfn.NORM.INV(RAND(),0,sigma) -> 4.320204148 | F9: 11.58049849 | G9: 1.226248544 | I9: =(C9-$C$12)*(C9-$C$12) -> 1 | J9: =(C9-$C$12)*(D9-$D$12) -> 1.110595729 | K9: =(D9-$D$12)*(C9-$C$12) -> 1.110595729 | L9: =(D9-$D$12)*(D9-$D$12) -> 1.233422873 | N9: The estimated beta1 via orthogonal regression is in the green shaded cell.
C10: 5 | D10: =beta0+beta1*C10+_xlfn.NORM.INV(RAND(),0,sigma) -> 5.74445773 | I10: =(C10-$C$12)*(C10-$C$12) -> 4 | J10: =(C10-$C$12)*(D10-$D$12) -> 5.069698622 | K10: =(D10-$D$12)*(C10-$C$12) -> 5.069698622 | L10: =(D10-$D$12)*(D10-$D$12) -> 6.425461028 | N10: Try it! Press F9 and watch it bounce!
I11: =SUM(I6:I10) -> 10 | J11: =SUM(J6:J10) -> 10.76127246 | K11: 10.76127246 | L11: 12.80674703
C12: =AVERAGE(C6:C10) -> 3 | D12: =AVERAGE(D6:D10) -> 3.209608419 | E12: averages | I12: =I11/4 -> 2.5 | J12: =J11/4 -> 2.690318114 | K12: 2.690318114 | L12: 3.201686758 | N12: Before we sim, think a bit -- what is the true value of beta1? Why can't we directly observe it?
I13: Variance-covariance matrix:
J14: =I12 -> 2.5 | K14: =J12 -> 2.690318114 | N14: Now that you know what we are looking for, we can sim!
J15: =K12 -> 2.690318114 | K15: =L12 -> 3.201686758 | N15: Q3: Race OLS against ortho. What do you find? | S15: (Click the Help button if you don't know what to sim.)
I17: eigenvector
I18: =MatEigenvector_max(J14:K15) -> 0.8780578601 | J18: 1
I20: Orthogonal regression fitted line
I21: =IF(J14>K15,1/J18,1/I18) -> 1.138877112 | J21: Ortho b1 | K21: Pred Ortho
I22: =D12-I21*C12 -> -0.2070229175 | J22: Orthob0 | K22: =$I$22+$I$21*C6 -> 0.9318541946
K23: =$I$22+$I$21*C7 -> 2.070731307
K24: =$I$22+$I$21*C8 -> 3.209608419
K25: =$I$22+$I$21*C9 -> 4.348485531
K26: =$I$22+$I$21*C10 -> 5.487362643
I28: Here's the orthoreg UDF, it outputs the coefficients in usual b0, b1 order:
I29: =orthoreg(D6:D10,C6:C10) -> -0.2070229175 | J29: Ortho b0
I30: 1.138877112 | J30: Ortho b1

Sheet EIV (hidden)
A1: Errors in Variables (EIV) DGP: Y = b0 + b1True X + e~N(0,sigmaY) | H1: The DGP should really be called Errors in X Variables, but since Y already has error, it is obviously a situation where we are adding error to X.
A2: Obs X = True X + n~N(0,sigmaX) | D2: (n is Greek letter nu) | H2: This situation, where both X and Y are measured with error is common in regressions that involve classification and computer vision.
A3: sigmaX=sigmaY is known as total least squares (TLS)
A4: If different, then Deming regression, residuals adjusted with lambda=s2e /s2n | H4: CEM has points that move vertically, up and down
A5: We will stay in the simple case of sigmaX = sigmaY | H5: EIV has points that move vertically and horizontally, up and down and right and left
H6: Press F9 a few times and watch the chart. There is up and down movement (Y), but also side-to-side movement (X).
A7: 10 | B7: beta0 | I7: The side-to-side movement seems bigger than up and down because of the X axis scale, but they have the same sigma
A8: 10 | B8: beta1 | H8: Evaluate the performance of OLS with a sim (track cells F13 and F14).
A9: 1 | B9: sigmaY | C9: Data below are 20 sets of X=1 to 5
A10: =sigmaY -> 1 | B10: sigmaX | H10: Race OLS against Ortho with a sim (track cells F13 and I14).
D11: Y based on True X, but we see Obs X
B12: True X | C12: Obs X | D12: Y | F12: OLS b1 | G12: OLS b0 | I12: Using orthoreg UDF | K12: Pred Ortho | L12: residual | M12: res^2 | N12: SSR
B13: 1 | C13: =B13+_xlfn.NORM.INV(RAND(),0,sigmaX) -> 1.48556701 | D13: =beta0+beta1*B13+_xlfn.NORM.INV(RAND(),0,sigmaY) -> 20.98435523 | F13: =LINEST(D13:D112,C13:C112,1,1) -> 6.877624208 | G13: 18.9342658 | I13: =orthoreg(D13:D112,C13:C112) -> 7.024097718 | J13: ortho b0 | K13: =$I$13+$I$14*C13 -> 23.02720758 | L13: =(D13-K13)/(SQRT(1+$I$14^2)) -> -0.188825921 | M13: =L13^2 -> 0.03565522846 | N13: =SUM(M13:M112) -> 95.75003729
B14: 2 | C14: 1.933959858 | D14: 31.35412625 | F14: 0.5263301772 | G14: 1.823233069 | I14: 10.77239178 | J14: ortho b1 | K14: =$I$13+$I$14*C14 -> 27.857471 | L14: =(D14-K14)/(SQRT(1+$I$14^2)) -> 0.323204538 | M14: =L14^2 -> 0.1044611734
B15: 3 | C15: 4.427890329 | D15: 41.15255501 | F15: 0.6353486399 | G15: 8.565309176 | K15: 54.72306712 | L15: -1.254356172 | M15: 1.573409407
B16: 4 | C16: 4.749013828 | D16: 49.2270438 | F16: 170.7498546 | G16: 98 | K16: 58.18233526 | L16: -0.8277598531 | M16: 0.6851863745
B17: 5 | C17: 4.498215287 | D17: 57.98215336 | F17: 12526.98134 | G17: 7189.723085 | H17: OLS SSR | K17: 55.48063512 | L17: 0.2312215496 | M17: 0.05346340498
B18: =B13 -> 1 | C18: 1.112906347 | D18: 19.03871595 | K18: 19.0127609 | L18: 0.002399089283 | M18: 5.755629387e-06
B19: =B14 -> 2 | C19: 1.554837605 | D19: 30.65952888 | K19: 23.77341756 | L19: 0.6365003889 | M19: 0.4051327451
B20: 3 | C20: 3.156730409 | D20: 39.87378573 | K20: 41.02963445 | L20: -0.1068379702 | M20: 0.01141435188
B21: 4 | C21: 4.061720005 | D21: 49.87001043 | K21: 50.77853693 | L21: -0.08397736242 | M21: 0.007052197399
B22: 5 | C22: 3.787814992 | D22: 59.21147553 | K22: 47.82792481 | L22: 1.052209893 | M22: 1.107145659
B23: 1 | C23: 0.2311123403 | D23: 20.02444534 | K23: 9.513730394 | L23: 0.9715315133 | M23: 0.9438734814
B24: 2 | C24: 2.76785219 | D24: 31.21545242 | K24: 36.84048591 | L24: -0.51993583 | M24: 0.2703332674 | O24: Q4: If EIV is the DGP, would you use OLS or Orthogonal regression? Why?
B25: 3 | C25: 4.666587485 | D25: 40.12375056 | K25: 57.2944064 | L25: -1.587126408 | M25: 2.518970234
B26: 4 | C26: 4.298225414 | D26: 50.2196719 | K26: 53.32626586 | L26: -0.2871502025 | M26: 0.08245523882
B27: 5 | C27: 3.84609637 | D27: 59.51529596 | K27: 48.45575466 | L27: 1.022260897 | M27: 1.045017342
B28: 1 | C28: 0.9100950994 | D28: 20.63989117 | K28: 16.82799869 | L28: 0.352342699 | M28: 0.1241453776
B29: 2 | C29: 1.108251141 | D29: 29.8263149 | K29: 18.9626132 | L29: 1.004158957 | M29: 1.008335211
B30: 3 | C30: 1.481015472 | D30: 40.8342233 | K30: 22.97817662 | L30: 1.650478787 | M30: 2.724080226
B31: 4 | C31: 4.134429259 | D31: 48.06753182 | K31: 51.5617895 | L31: -0.3229829248 | M31: 0.1043179697
B32: 5 | C32: 3.386384215 | D32: 61.16628898 | K32: 43.50355522 | L32: 1.632610394 | M32: 2.665416697
B33: 1 | C33: 1.310815785 | D33: 20.65371995 | K33: 21.14471892 | L33: -0.04538425517 | M33: 0.002059730618
B34: 2 | C34: 0.6709478758 | D34: 31.51051773 | K34: 14.2518111 | L34: 1.595265161 | M34: 2.544870934
B35: 3 | C35: 2.119458376 | D35: 39.13178801 | K35: 29.85573372 | L35: 0.8574087597 | M35: 0.7351497811
B36: 4 | C36: 3.537389846 | D36: 49.8444569 | K36: 45.13024703 | L36: 0.4357461381 | M36: 0.1898746968
B37: 5 | C37: 3.1632222 | D37: 59.65443804 | K37: 41.09956656 | L37: 1.715072901 | M37: 2.941475054
B38: 1 | C38: 1.682116964 | D38: 19.84428326 | K38: 25.14452068 | L38: -0.489914122 | M38: 0.240015847
B39: 2 | C39: 2.480974486 | D39: 29.96820326 | K39: 33.75012689 | L39: -0.3495726033 | M39: 0.122201005
B40: 3 | C40: 5.046751098 | D40: 40.55137059 | K40: 61.38967778 | L40: -1.92613654 | M40: 3.710001972
B41: 4 | C41: 3.847735023 | D41: 49.30419966 | K41: 48.47340687 | L41: 0.07679224245 | M41: 0.0058970485
B42: 5 | C42: 4.070409006 | D42: 60.13462435 | K42: 50.87213825 | L42: 0.8561546174 | M42: 0.7330007288
B43: 1 | C43: 1.712499001 | D43: 19.96663656 | K43: 25.47180789 | L43: -0.5088566718 | M43: 0.2589351125
B44: 2 | C44: 2.362798861 | D44: 30.36708023 | K44: 32.47709276 | L44: -0.1950337041 | M44: 0.03803814574
B45: 3 | C45: =B45+_xlfn.NORM.INV(RAND(),0,sigmaX) -> 3.159761886 | D45: =beta0+beta1*B45+_xlfn.NORM.INV(RAND(),0,sigmaY) -> 39.75325897 | K45: 41.0622907 | L45: -0.1209970575 | M45: 0.01464028793
B46: 4 | C46: 6.195374391 | D46: 50.45152396 | K46: 73.7630979 | L46: -2.154746735 | M46: 4.642933493
B47: 5 | C47: 3.926858109 | D47: 60.68026401 | K47: 49.32575175 | L47: 1.049525797 | M47: 1.101504399
B48: 1 | C48: 1.121692828 | D48: 19.45308051 | K48: 19.10741232 | L48: 0.03195096996 | M48: 0.001020864481
B49: 2 | C49: 2.328446218 | D49: 29.42369621 | K49: 32.10703263 | L49: -0.2480274566 | M49: 0.06151761925
B50: 3 | C50: 3.98754729 | D50: 39.57703518 | K50: 49.97951938 | L50: -0.961527477 | M50: 0.924535089
B51: 4 | C51: 5.041138473 | D51: 49.59062077 | K51: 61.32921639 | L51: -1.085027576 | M51: 1.177284841
B52: 5 | C52: 5.634675063 | D52: 59.53836821 | K52: 67.72302507 | L52: -0.7565281818 | M52: 0.5723348899
B53: 1 | C53: 2.407320775 | D53: 20.38634068 | K53: 32.95670026 | L53: -1.161909587 | M53: 1.350033889
B54: 2 | C54: 1.847734201 | D54: 29.54403771 | K54: 26.92861445 | L54: 0.2417500745 | M54: 0.05844309851
B55: 3 | C55: 3.420387622 | D55: 40.12627852 | K55: 43.86985324 | L55: -0.3460279189 | M55: 0.1197353206
B56: 4 | C56: 4.200961875 | D56: 50.37870642 | K56: 52.27850491 | L56: -0.1756030972 | M56: 0.03083644776
B57: 5 | C57: 6.02539425 | D57: 59.91447146 | K57: 71.93200523 | L57: -1.110810523 | M57: 1.233900019
B58: 1 | C58: -0.6412892957 | D58: 20.61900404 | K58: 0.1158781775 | L58: 1.895154897 | M58: 3.591612084
B59: 2 | C59: 2.7420173 | D59: 30.62101196 | K59: 36.56218236 | L59: -0.54915715 | M59: 0.3015735754
B60: 3 | C60: 4.117212393 | D60: 40.57840363 | K60: 51.37632268 | L60: -0.9980785026 | M60: 0.9961606973
B61: 4 | C61: 4.621650577 | D61: 51.40902605 | K61: 56.81032842 | L61: -0.4992558061 | M61: 0.2492563599
B62: 5 | C62: 6.362092391 | D62: 58.61882659 | K62: 75.55904952 | L62: -1.565826921 | M62: 2.451813945
B63: 1 | C63: 2.3875672 | D63: 19.8988513 | K63: 32.743907 | L63: -1.187300433 | M63: 1.409682318
B64: 2 | C64: 1.96007813 | D64: 28.13824826 | K64: 28.13882727 | L64: -5.351928895e-05 | M64: 2.864314289e-09
B65: 3 | C65: 3.307575789 | D65: 39.51811124 | K65: 42.65459998 | L65: -0.2899134515 | M65: 0.08404980938
B66: 4 | C66: 3.346749917 | D66: 49.0086986 | K66: 43.07659903 | L66: 0.5483187117 | M66: 0.3006534096
B67: 5 | C67: 4.685704542 | D67: 59.56962757 | K67: 57.50034283 | L67: 0.1912691329 | M67: 0.0365838812
B68: 1 | C68: 1.912912509 | D68: 21.34615215 | K68: 27.63074071 | L68: -0.5809001447 | M68: 0.3374449781
B69: 2 | C69: 3.853258743 | D69: 29.00408401 | K69: 48.53291055 | L69: -1.805097988 | M69: 3.258378746
B70: 3 | C70: 3.092914245 | D70: 39.68499763 | K70: 40.34218172 | L70: -0.0607451596 | M70: 0.003689974415
B71: 4 | C71: 5.210977208 | D71: 48.82701615 | K71: 63.15878578 | L71: -1.324721097 | M71: 1.754885986
B72: 5 | C72: 4.70318763 | D72: 59.31711947 | K72: 57.6886775 | L72: 0.15052094 | M72: 0.02265655338
B73: 1 | C73: 0.7064271846 | D73: 20.49043306 | K73: 14.63400812 | L73: 0.5413239175 | M73: 0.2930315836
B74: 2 | C74: 1.744813156 | D74: 29.71007576 | K74: 25.81990862 | L74: 0.3595778203 | M74: 0.1292962089
B75: 3 | C75: 2.280674203 | D75: 40.60977866 | K75: 31.59241376 | L75: 0.8334974561 | M75: 0.6947180094
B76: 4 | C76: 5.013966023 | D76: 49.77104139 | K76: 61.03650411 | L76: -1.041294727 | M76: 1.084294709
B77: 5 | C77: =B77+_xlfn.NORM.INV(RAND(),0,sigmaX) -> 6.11401408 | D77: =beta0+beta1*B77+_xlfn.NORM.INV(RAND(),0,sigmaY) -> 60.85883078 | K77: 72.88665277 | L77: -1.111761489 | M77: 1.236013608
B78: 1 | C78: 1.096353456 | D78: 19.99882724 | K78: =$I$13+$I$14*C78 -> 18.83444668 | L78: =(D78-K78)/(SQRT(1+$I$14^2)) -> 0.10762659 | M78: =L78^2 -> 0.01158348288
B79: 2 | C79: 0.4685028258 | D79: 30.45470404 | K79: 12.07099371 | L79: 1.69925205 | M79: 2.88745753
B80: 3 | C80: 1.802681042 | D80: 41.32723381 | K80: 26.44328417 | L80: 1.375760468 | M80: 1.892716866
B81: 4 | C81: 1.945966545 | D81: 49.83386686 | K81: 27.98681174 | L81: 2.019377618 | M81: 4.077885965
B82: 5 | C82: 2.539023191 | D82: 58.60973493 | K82: 34.37545028 | L82: 2.240035179 | M82: 5.017757605
B83: =B78 -> 1 | C83: 0.8043086155 | D83: 21.53284819 | K83: 15.68842524 | L83: 0.5402145429 | M83: 0.2918317524
B84: 2 | C84: 0.8592954972 | D84: 28.3413572 | K84: 16.28076547 | L84: 1.114790478 | M84: 1.242757809
B85: 3 | C85: 3.303784604 | D85: 38.66811745 | K85: 42.61375984 | L85: -0.3647055356 | M85: 0.1330101277
B86: 4 | C86: 4.096727754 | D86: 48.55507299 | K86: 51.15565412 | L86: -0.2403781785 | M86: 0.05778166872
B87: 5 | C87: 5.608532094 | D87: 58.8795393 | K87: 67.44140277 | L87: -0.791394326 | M87: 0.6263049793
B88: 1 | C88: 2.225284232 | D88: 20.02101629 | K88: 30.99573129 | L88: -1.014420192 | M88: 1.029048326
B89: 2 | C89: 2.682370093 | D89: 29.96732864 | K89: 35.91963927 | L89: -0.55018687 | M89: 0.3027055919
B90: 3 | C90: 4.161016308 | D90: 39.87318757 | K90: 51.84819561 | L90: -1.106879764 | M90: 1.225182813
B91: 4 | C91: 2.749692237 | D91: 51.66438073 | K91: 36.64485978 | L91: 1.388291662 | M91: 1.927353738
B92: 5 | C92: 5.395499932 | D92: 59.23996765 | K92: 65.14653686 | L92: -0.5459588769 | M92: 0.2980710953
B93: 1 | C93: 0.4349420841 | D93: 17.92379463 | K93: 11.70946425 | L93: 0.5744060063 | M93: 0.3299422601
B94: 2 | C94: 2.089051283 | D94: 29.20998518 | K94: 29.52817659 | L94: -0.02941122348 | M94: 0.0008650200665
B95: 3 | C95: 3.66899921 | D95: 40.97172291 | K95: 46.54799466 | L95: -0.5154286615 | M95: 0.265666705
B96: 4 | C96: 5.009435895 | D96: 50.96645267 | K96: 60.9877038 | L96: -0.9262891553 | M96: 0.8580115992
B97: 5 | C97: 5.582687292 | D97: 60.22251765 | K97: 67.16299244 | L97: -0.6415253395 | M97: 0.4115547612
B98: 1 | C98: 1.656409365 | D98: 20.24569504 | K98: 24.86758835 | L98: -0.4272130893 | M98: 0.1825110236
B99: 2 | C99: 3.049367288 | D99: 31.73543633 | K99: 39.87307684 | L99: -0.7521823429 | M99: 0.565778277
B100: 3 | C100: 3.715530306 | D100: 40.44785687 | K100: 47.04924587 | L100: -0.6101827969 | M100: 0.3723230456
B101: 4 | C101: 4.135292646 | D101: 51.06904398 | K101: 51.57109024 | L101: -0.04640538386 | M101: 0.002153459652
B102: 5 | C102: 4.838864034 | D102: 59.52815179 | K102: 59.15023688 | L102: 0.03493161423 | M102: 0.001220217673
B103: 1 | C103: 1.599392813 | D103: 19.80672837 | K103: 24.25338371 | L103: -0.4110154086 | M103: 0.1689336661
B104: 2 | C104: 3.561708831 | D104: 28.70763919 | K104: 45.39222066 | L104: -1.542197345 | M104: 2.378372652
B105: 3 | C105: 3.316261095 | D105: 40.07519952 | K105: 42.7481615 | L105: -0.247068521 | M105: 0.06104285409
B106: 4 | C106: 3.313302455 | D106: 50.41733692 | K106: 42.71628987 | L106: 0.7118269245 | M106: 0.5066975704
B107: 5 | C107: 4.439142526 | D107: 61.75350325 | K107: 54.84428019 | L107: 0.6386366647 | M107: 0.4078567895
B108: 1 | C108: -1.702219707 | D108: 19.36088153 | K108: -11.31287987 | L108: 2.835252025 | M108: 8.038654045
B109: 2 | C109: =B109+_xlfn.NORM.INV(RAND(),0,sigmaX) -> 0.7926087287 | D109: 30.33896893 | K109: 15.56238947 | L109: 1.365835975 | M109: 1.865507911
B110: 3 | C110: 2.373626635 | D110: 38.68257226 | K110: 32.59373377 | L110: 0.5628064791 | M110: 0.316751133
B111: 4 | C111: 2.814139763 | D111: 50.46084721 | K111: 37.33911378 | L111: 1.212874443 | M111: 1.471064415
B112: 5 | C112: 4.947998824 | D112: 59.3720871 | K112: 60.3258796 | L112: -0.08816141174 | M112: 0.00777243452

Sheet TheEnd (hidden)
A1: Conclusion
A3: Errors in X variables, called just errors in variables, means you have a different DGP for which OLS is no longer BLUE -- in fact, it isn't even U!
A4: Orthogonal regression is a different recipe than OLS -- the residual is measured as a perpendicular distance to the fitted line.
A5: Orthogonal regression is unbiased for an EIV DGP, but is it BLUE? That's too hard to answer here.
A7: What are things have you learned? What other questions do you have? Let's BRAINSTORM! Jot down ideas below.
A8: (Scroll down to see some of mine.)
A54: Does OLS get worse as sigma increases?
A55: What if you had a mix of Xs, some with and anothers without errors?
A56: What is the Ortho Estimated SE of b1?

Sheet OneVarMCSim (hidden)
A1: Results of Monte Carlo Simulation | AK1: 0 | AL1: 0
A2: Sample Number | F2: Simulation Stats | AH2: 0 | AK2: 0 | AL2: 0
A3: 1 | G3: repetitions | AH3: 0.1290322542 | AI3: 0 | AK3: 0.1290322542 | AL3: 0
A4: 2 | G4: seconds | I4: Summary Statistics | L4: Notes | AH4: 0.2580645084 | AI4: 3 | AK4: 0.1290322542 | AL4: 3
A5: 3 | I5: Average | J5: 1.16710423 | AH5: 0.3870967627 | AI5: 4 | AK5: 0.2580645084 | AL5: 3
A6: 4 | I6: SD | J6: 0.5760398821 | AH6: 0.5161290169 | AI6: 8 | AK6: 0.2580645084 | AL6: 4
A7: 5 | I7: Max | J7: 2.5793023 | AH7: 0.6451612711 | AI7: 4 | AK7: 0.3870967627 | AL7: 4
A8: 6 | I8: Min | J8: 0.2134278418 | AH8: 0.7741935253 | AI8: 9 | AK8: 0.3870967627 | AL8: 8
A9: 7 | AH9: 0.9032257795 | AI9: 9 | AK9: 0.5161290169 | AL9: 8
A10: 8 | AH10: 1.032258034 | AI10: 12 | AK10: 0.5161290169 | AL10: 4
A11: 9 | AH11: 1.161290288 | AI11: 8 | AK11: 0.6451612711 | AL11: 4
A12: 10 | AH12: 1.290322542 | AI12: 3 | AK12: 0.6451612711 | AL12: 9
A13: 11 | AH13: 1.419354796 | AI13: 6 | AK13: 0.7741935253 | AL13: 9
A14: 12 | AH14: 1.548387051 | AI14: 7 | AK14: 0.7741935253 | AL14: 9
A15: 13 | AH15: 1.677419305 | AI15: 6 | AK15: 0.9032257795 | AL15: 9
A16: 14 | AH16: 1.806451559 | AI16: 6 | AK16: 0.9032257795 | AL16: 12
A17: 15 | AH17: 1.935483813 | AI17: 2 | AK17: 1.032258034 | AL17: 12
A18: 16 | AH18: 2.064516068 | AI18: 5 | AK18: 1.032258034 | AL18: 8
A19: 17 | AH19: 2.193548322 | AI19: 2 | AK19: 1.161290288 | AL19: 8
A20: 18 | AH20: 2.322580576 | AI20: 3 | AK20: 1.161290288 | AL20: 3
A21: 19 | AH21: 2.45161283 | AI21: 2 | AK21: 1.290322542 | AL21: 3
A22: 20 | AH22: 2.580645084 | AI22: 1 | AK22: 1.290322542 | AL22: 6
A23: 21 | AH23: 2.709677339 | AI23: 0 | AK23: 1.419354796 | AL23: 6
A24: 22 | AH24: 2.838709593 | AI24: 0 | AK24: 1.419354796 | AL24: 7
A25: 23 | AH25: 2.967741847 | AI25: 0 | AK25: 1.548387051 | AL25: 7
A26: 24 | AH26: 3.096774101 | AI26: 0 | AK26: 1.548387051 | AL26: 6
A27: 25 | AH27: 3.225806355 | AI27: 0 | AK27: 1.677419305 | AL27: 6
A28: 26 | AH28: 3.35483861 | AI28: 0 | AK28: 1.677419305 | AL28: 6
A29: 27 | AH29: 3.483870864 | AI29: 0 | AK29: 1.806451559 | AL29: 6
A30: 28 | AH30: 3.612903118 | AI30: 0 | AK30: 1.806451559 | AL30: 2
A31: 29 | AH31: 3.741935372 | AI31: 0 | AK31: 1.935483813 | AL31: 2
A32: 30 | AH32: 3.870967627 | AI32: 0 | AK32: 1.935483813 | AL32: 5
A33: 31 | AH33: 3.999999881 | AI33: 0 | AK33: 2.064516068 | AL33: 5
A34: 32 | AK34: 2.064516068 | AL34: 2
A35: 33 | AK35: 2.193548322 | AL35: 2
A36: 34 | AK36: 2.193548322 | AL36: 3
A37: 35 | AK37: 2.322580576 | AL37: 3
A38: 36 | AK38: 2.322580576 | AL38: 2
A39: 37 | AK39: 2.45161283 | AL39: 2
A40: 38 | AK40: 2.45161283 | AL40: 1
A41: 39 | AK41: 2.580645084 | AL41: 1
A42: 40 | AK42: 2.580645084 | AL42: 0
A43: 41 | AK43: 2.709677339 | AL43: 0
A44: 42 | AK44: 2.709677339 | AL44: 0
A45: 43 | AK45: 2.838709593 | AL45: 0
A46: 44 | AK46: 2.838709593 | AL46: 0
A47: 45 | AK47: 2.967741847 | AL47: 0
A48: 46 | AK48: 2.967741847 | AL48: 0
A49: 47 | AK49: 3.096774101 | AL49: 0
A50: 48 | AK50: 3.096774101 | AL50: 0
A51: 49 | AK51: 3.225806355 | AL51: 0
A52: 50 | AK52: 3.225806355 | AL52: 0
A53: 51 | AK53: 3.35483861 | AL53: 0
A54: 52 | AK54: 3.35483861 | AL54: 0
A55: 53 | AK55: 3.483870864 | AL55: 0
A56: 54 | AK56: 3.483870864 | AL56: 0
A57: 55 | AK57: 3.612903118 | AL57: 0
A58: 56 | AK58: 3.612903118 | AL58: 0
A59: 57 | AK59: 3.741935372 | AL59: 0
A60: 58 | AK60: 3.741935372 | AL60: 0
A61: 59 | AK61: 3.870967627 | AL61: 0
A62: 60 | AK62: 3.870967627 | AL62: 0
A63: 61 | AK63: 3.999999881 | AL63: 0
A64: 62 | AK64: 3.999999881 | AL64: 0
A65: 63
A66: 64
A67: 65
A68: 66
A69: 67
A70: 68
A71: 69
A72: 70
A73: 71
A74: 72
A75: 73
A76: 74
A77: 75
A78: 76
A79: 77
A80: 78
A81: 79
A82: 80
A83: 81
A84: 82
A85: 83
A86: 84
A87: 85
A88: 86
A89: 87
A90: 88
A91: 89
A92: 90
A93: 91
A94: 92
A95: 93
A96: 94
A97: 95
A98: 96
A99: 97
A100: 98
A101: 99
A102: 100
A103: Only the first 100 repetitions are displayed on this worksheet.

Sheet TwoVarMCSim (hidden)
A1: Results of Monte Carlo Simulation
A2: Sample Number | B2: Var1 | C2: Var2 | F2: Simulation Stats
A3: 1 | G3: repetitions
A4: 2 | G4: secs | I4: Var1 | K4: Var2 | M4: Notes
A5: 3 | I5: Average | J5: 0.003891987077 | K5: Average | L5: 0.003355620617
A6: 4 | I6: SD | J6: 0.1659865299 | K6: SD | L6: 0.1488266145
A7: 5 | I7: Max | J7: 0.5008107016 | K7: Max | L7: 0.4001902531
A8: 6 | I8: Min | J8: -0.5496349566 | K8: Min | L8: -0.4673416415
A9: 7
A10: 8
A11: 9
A12: 10
A13: 11
A14: 12
A15: 13
A16: 14
A17: 15
A18: 16
A19: 17 | F19: 1
A20: 18
A21: 19
A22: 20
A23: 21
A24: 22
A25: 23
A26: 24
A27: 25
A28: 26
A29: 27
A30: 28
A31: 29
A32: 30
A33: 31
A34: 32
A35: 33
A36: 34
A37: 35
A38: 36
A39: 37
A40: 38
A41: 39
A42: 40
A43: 41
A44: 42
A45: 43
A46: 44
A47: 45
A48: 46
A49: 47
A50: 48
A51: 49
A52: 50
A53: 51
A54: 52
A55: 53
A56: 54
A57: 55
A58: 56
A59: 57
A60: 58
A61: 59
A62: 60
A63: 61
A64: 62
A65: 63
A66: 64
A67: 65
A68: 66
A69: 67
A70: 68
A71: 69
A72: 70
A73: 71
A74: 72
A75: 73
A76: 74
A77: 75
A78: 76
A79: 77
A80: 78
A81: 79
A82: 80
A83: 81
A84: 82
A85: 83
A86: 84
A87: 85
A88: 86
A89: 87
A90: 88
A91: 89
A92: 90
A93: 91
A94: 92
A95: 93
A96: 94
A97: 95
A98: 96
A99: 97
A100: 98
A101: 99
A102: 100
A103: Only the first 100 repetitions are displayed on this worksheet.

Sheet MCSim7 (hidden)
A1: Results of Monte Carlo Simulation | AL1: $F$1 | AM1: LiveOLSOrthoEIV!$F$2
A2: Sample Number | B2: $F$1 | C2: LiveOLSOrthoEIV!$F$2 | F2: Simulation Stats | AH2: 0.3 | AK2: 0.3 | AL2: 0 | AM2: 0
A3: 1 | B3: 6.558325768 | C3: 0.4994074343 | F3: 1000 | G3: repetitions | AH3: 0.4 | AK3: 0.3 | AL3: 0 | AM3: 34
A4: 2 | B4: 6.316924963 | C4: 0.4699267638 | F4: 0.9999996051 | G4: secs | I4: $F$1 | K4: LiveOLSOrthoEIV!$F$2 | M4: Notes | AH4: 0.5 | AK4: 0.4 | AL4: 0 | AM4: 34
A5: 3 | B5: 6.707021659 | C5: 0.4346917978 | I5: Average | J5: 6.710529881 | K5: Average | L5: 0.478733367 | M5: with EIV, OLS b1 and est SE BOTH biased | AH5: 0.6 | AK5: 0.4 | AL5: 0 | AM5: 645
A6: 4 | B6: 6.654111722 | C6: 0.5030460062 | I6: SD | J6: 0.3647492333 | K6: SD | L6: 0.04618139692 | AH6: 0.7 | AK6: 0.5 | AL6: 0 | AM6: 645
A7: 5 | B7: 6.531917172 | C7: 0.5041913525 | I7: Max | J7: 8.400145811 | K7: Max | L7: 0.6716555319 | AH7: 0.8 | AK7: 0.5 | AL7: 0 | AM7: 314
A8: 6 | B8: 6.177860394 | C8: 0.5075288528 | I8: Min | J8: 5.622545075 | K8: Min | L8: 0.3478868939 | AH8: 0.9 | AK8: 0.6 | AL8: 0 | AM8: 314
A9: 7 | B9: 7.507772397 | C9: 0.4473114104 | AH9: 1 | AK9: 0.6 | AL9: 0 | AM9: 7
A10: 8 | B10: 7.219276495 | C10: 0.4285978989 | AH10: 1.1 | AK10: 0.7 | AL10: 0 | AM10: 7
A11: 9 | B11: 7.155173803 | C11: 0.4969791102 | AH11: 1.2 | AK11: 0.7 | AL11: 0 | AM11: 0
A12: 10 | B12: 6.109705946 | C12: 0.4916792877 | AH12: 1.3 | AK12: 0.8 | AL12: 0
A13: 11 | B13: 6.925255228 | C13: 0.5294930386 | AH13: 1.4 | AK13: 0.8 | AL13: 0
A14: 12 | B14: 6.668264884 | C14: 0.4526858099 | AH14: 1.5 | AK14: 0.9 | AL14: 0
A15: 13 | B15: 6.52929478 | C15: 0.5771056721 | AH15: 1.6 | AK15: 0.9 | AL15: 0
A16: 14 | B16: 7.851943706 | C16: 0.5449255418 | AH16: 1.7 | AK16: 1 | AL16: 0
A17: 15 | B17: 7.107068827 | C17: 0.5693809306 | AH17: 1.8 | AK17: 1 | AL17: 0
A18: 16 | B18: 7.039159411 | C18: 0.4509680277 | AH18: 1.9 | AK18: 1.1 | AL18: 0
A19: 17 | B19: 7.140834684 | C19: 0.4918459373 | F19: 1 | AH19: 2 | AK19: 1.1 | AL19: 0
A20: 18 | B20: 6.938016778 | C20: 0.5028394274 | AH20: 2.1 | AK20: 1.2 | AL20: 0
A21: 19 | B21: 7.197977763 | C21: 0.5268966391 | AH21: 2.2 | AK21: 1.2 | AL21: 0
A22: 20 | B22: 6.456150336 | C22: 0.484010863 | AH22: 2.3 | AK22: 1.3 | AL22: 0
A23: 21 | B23: 6.318772289 | C23: 0.4571857702 | AH23: 2.4 | AK23: 1.3 | AL23: 0
A24: 22 | B24: 6.904445385 | C24: 0.3997476255 | AH24: 2.5 | AK24: 1.4 | AL24: 0
A25: 23 | B25: 6.833749492 | C25: 0.6131488184 | AH25: 2.6 | AK25: 1.4 | AL25: 0
A26: 24 | B26: 6.077305539 | C26: 0.4537273874 | AH26: 2.7 | AK26: 1.5 | AL26: 0
A27: 25 | B27: 7.176862754 | C27: 0.4865524852 | AH27: 2.8 | AK27: 1.5 | AL27: 0
A28: 26 | B28: 6.545820058 | C28: 0.4562306777 | AH28: 2.9 | AK28: 1.6 | AL28: 0
A29: 27 | B29: 7.480780608 | C29: 0.4248174104 | AH29: 3 | AK29: 1.6 | AL29: 0
A30: 28 | B30: 6.057279833 | C30: 0.4843796714 | AH30: 3.1 | AK30: 1.7 | AL30: 0
A31: 29 | B31: 6.658557905 | C31: 0.417738688 | AH31: 3.2 | AK31: 1.7 | AL31: 0
A32: 30 | B32: 6.641173794 | C32: 0.5466941705 | AH32: 3.3 | AK32: 1.8 | AL32: 0
A33: 31 | B33: 6.564224847 | C33: 0.3979143184 | AH33: 3.4 | AK33: 1.8 | AL33: 0
A34: 32 | B34: 6.282028904 | C34: 0.4585712668 | AH34: 3.5 | AK34: 1.9 | AL34: 0
A35: 33 | B35: 6.734332794 | C35: 0.4471216293 | AH35: 3.6 | AK35: 1.9 | AL35: 0
A36: 34 | B36: 6.901275162 | C36: 0.4201258762 | AH36: 3.7 | AK36: 2 | AL36: 0
A37: 35 | B37: 6.294954223 | C37: 0.4256247801 | AH37: 3.8 | AK37: 2 | AL37: 0
A38: 36 | B38: 7.000776747 | C38: 0.5301997808 | AH38: 3.9 | AK38: 2.1 | AL38: 0
A39: 37 | B39: 6.855660854 | C39: 0.4036555008 | AH39: 4 | AK39: 2.1 | AL39: 0
A40: 38 | B40: 6.463628281 | C40: 0.5204381546 | AH40: 4.1 | AK40: 2.2 | AL40: 0
A41: 39 | B41: 6.703045998 | C41: 0.5030070536 | AH41: 4.2 | AK41: 2.2 | AL41: 0
A42: 40 | B42: 6.805324095 | C42: 0.4287408191 | AH42: 4.3 | AK42: 2.3 | AL42: 0
A43: 41 | B43: 6.756459459 | C43: 0.4807646378 | AH43: 4.4 | AK43: 2.3 | AL43: 0
A44: 42 | B44: 6.990881332 | C44: 0.4903604963 | AH44: 4.5 | AK44: 2.4 | AL44: 0
A45: 43 | B45: 6.406209868 | C45: 0.4122171227 | AH45: 4.6 | AK45: 2.4 | AL45: 0
A46: 44 | B46: 6.589591306 | C46: 0.4006238659 | AH46: 4.7 | AK46: 2.5 | AL46: 0
A47: 45 | B47: 6.552621461 | C47: 0.482232924 | AH47: 4.8 | AK47: 2.5 | AL47: 0
A48: 46 | B48: 6.047442252 | C48: 0.5371123586 | AH48: 4.9 | AK48: 2.6 | AL48: 0
A49: 47 | B49: 7.006237117 | C49: 0.6100718931 | AH49: 5 | AK49: 2.6 | AL49: 0
A50: 48 | B50: 6.287361011 | C50: 0.4190557402 | AH50: 5.1 | AK50: 2.7 | AL50: 0
A51: 49 | B51: 6.822609118 | C51: 0.4081423205 | AH51: 5.2 | AK51: 2.7 | AL51: 0
A52: 50 | B52: 6.746434668 | C52: 0.4974858146 | AH52: 5.3 | AK52: 2.8 | AL52: 0
A53: 51 | B53: 6.185142545 | C53: 0.4493020653 | AH53: 5.4 | AK53: 2.8 | AL53: 0
A54: 52 | B54: 6.920307705 | C54: 0.4582080579 | AH54: 5.5 | AK54: 2.9 | AL54: 0
A55: 53 | B55: 6.694414693 | C55: 0.5285474908 | AH55: 5.6 | AK55: 2.9 | AL55: 0
A56: 54 | B56: 7.393482987 | C56: 0.4949907298 | AH56: 5.7 | AK56: 3 | AL56: 0
A57: 55 | B57: 6.756523573 | C57: 0.5250174192 | AH57: 5.8 | AK57: 3 | AL57: 0
A58: 56 | B58: 6.781021338 | C58: 0.4710235552 | AH58: 5.9 | AK58: 3.1 | AL58: 0
A59: 57 | B59: 6.89469454 | C59: 0.5013562442 | AH59: 6 | AK59: 3.1 | AL59: 0
A60: 58 | B60: 6.993532305 | C60: 0.378944618 | AH60: 6.1 | AK60: 3.2 | AL60: 0
A61: 59 | B61: 6.847850965 | C61: 0.4696743749 | AH61: 6.2 | AK61: 3.2 | AL61: 0
A62: 60 | B62: 6.596662855 | C62: 0.3920594901 | AH62: 6.3 | AK62: 3.3 | AL62: 0
A63: 61 | B63: 6.735812266 | C63: 0.4904417127 | AH63: 6.4 | AK63: 3.3 | AL63: 0
A64: 62 | B64: 6.534519038 | C64: 0.4797712716 | AH64: 6.5 | AK64: 3.4 | AL64: 0
A65: 63 | B65: 6.48746813 | C65: 0.4302117394 | AH65: 6.6 | AK65: 3.4 | AL65: 0
A66: 64 | B66: 6.649887091 | C66: 0.4565087407 | AH66: 6.7 | AK66: 3.5 | AL66: 0
A67: 65 | B67: 6.668315961 | C67: 0.4291494307 | AH67: 6.8 | AK67: 3.5 | AL67: 0
A68: 66 | B68: 6.665445955 | C68: 0.4350497606 | AH68: 6.9 | AK68: 3.6 | AL68: 0
A69: 67 | B69: 6.90692957 | C69: 0.5229396214 | AH69: 7 | AK69: 3.6 | AL69: 0
A70: 68 | B70: 6.664009977 | C70: 0.4959131917 | AH70: 7.1 | AK70: 3.7 | AL70: 0
A71: 69 | B71: 6.680839221 | C71: 0.5230832068 | AH71: 7.2 | AK71: 3.7 | AL71: 0
A72: 70 | B72: 6.393494915 | C72: 0.4394747405 | AH72: 7.3 | AK72: 3.8 | AL72: 0
A73: 71 | B73: 6.409698233 | C73: 0.4438627105 | AH73: 7.4 | AK73: 3.8 | AL73: 0
A74: 72 | B74: 6.833652688 | C74: 0.5446503224 | AH74: 7.5 | AK74: 3.9 | AL74: 0
A75: 73 | B75: 6.663565996 | C75: 0.4705305497 | AH75: 7.6 | AK75: 3.9 | AL75: 0
A76: 74 | B76: 7.010183501 | C76: 0.4448174824 | AH76: 7.7 | AK76: 4 | AL76: 0
A77: 75 | B77: 6.292775107 | C77: 0.4433674345 | AH77: 7.8 | AK77: 4 | AL77: 0
A78: 76 | B78: 7.180402936 | C78: 0.4819045089 | AH78: 7.9 | AK78: 4.1 | AL78: 0
A79: 77 | B79: 6.582263166 | C79: 0.4894265462 | AH79: 8 | AK79: 4.1 | AL79: 0
A80: 78 | B80: 7.224169477 | C80: 0.5295452495 | AH80: 8.1 | AK80: 4.2 | AL80: 0
A81: 79 | B81: 6.571853713 | C81: 0.4793066027 | AH81: 8.2 | AK81: 4.2 | AL81: 0
A82: 80 | B82: 6.309844965 | C82: 0.4900322101 | AH82: 8.3 | AK82: 4.3 | AL82: 0
A83: 81 | B83: 6.670150212 | C83: 0.4861753586 | AH83: 8.4 | AK83: 4.3 | AL83: 0
A84: 82 | B84: 7.18103065 | C84: 0.5548612165 | AH84: 8.5 | AK84: 4.4 | AL84: 0
A85: 83 | B85: 6.661425362 | C85: 0.3961573706 | AK85: 4.4 | AL85: 0
A86: 84 | B86: 6.650990306 | C86: 0.4876224309 | AK86: 4.5 | AL86: 0
A87: 85 | B87: 6.315638796 | C87: 0.475792043 | AK87: 4.5 | AL87: 0
A88: 86 | B88: 7.372483206 | C88: 0.529991944 | AK88: 4.6 | AL88: 0
A89: 87 | B89: 6.243299042 | C89: 0.535053748 | AK89: 4.6 | AL89: 0
A90: 88 | B90: 6.61032759 | C90: 0.5176543787 | AK90: 4.7 | AL90: 0
A91: 89 | B91: 7.004701474 | C91: 0.4335707234 | AK91: 4.7 | AL91: 0
A92: 90 | B92: 6.571866888 | C92: 0.4669445924 | AK92: 4.8 | AL92: 0
A93: 91 | B93: 7.926058627 | C93: 0.5228999897 | AK93: 4.8 | AL93: 0
A94: 92 | B94: 7.289039689 | C94: 0.4868087467 | AK94: 4.9 | AL94: 0
A95: 93 | B95: 7.321449615 | C95: 0.508306839 | AK95: 4.9 | AL95: 0
A96: 94 | B96: 6.766810795 | C96: 0.5337707345 | AK96: 5 | AL96: 0
A97: 95 | B97: 6.506218673 | C97: 0.4602884469 | AK97: 5 | AL97: 0
A98: 96 | B98: 6.006874855 | C98: 0.4723268454 | AK98: 5.1 | AL98: 0
A99: 97 | B99: 6.615279184 | C99: 0.4344848139 | AK99: 5.1 | AL99: 0
A100: 98 | B100: 7.026018071 | C100: 0.4515963129 | AK100: 5.2 | AL100: 0
A101: 99 | B101: 6.54973103 | C101: 0.5413309719 | AK101: 5.2 | AL101: 0
A102: 100 | B102: 6.253152075 | C102: 0.480241599 | AK102: 5.3 | AL102: 0
A103: Only the first 100 repetitions are displayed on this worksheet. | AK103: 5.3 | AL103: 0
AK104: 5.4 | AL104: 0
AK105: 5.4 | AL105: 0
AK106: 5.5 | AL106: 0
AK107: 5.5 | AL107: 0
AK108: 5.6 | AL108: 0
AK109: 5.6 | AL109: 1
AK110: 5.7 | AL110: 1
AK111: 5.7 | AL111: 2
AK112: 5.8 | AL112: 2
AK113: 5.8 | AL113: 3
AK114: 5.9 | AL114: 3
AK115: 5.9 | AL115: 15
AK116: 6 | AL116: 15
AK117: 6 | AL117: 14
AK118: 6.1 | AL118: 14
AK119: 6.1 | AL119: 38
AK120: 6.2 | AL120: 38
AK121: 6.2 | AL121: 48
AK122: 6.3 | AL122: 48
AK123: 6.3 | AL123: 81
AK124: 6.4 | AL124: 81
AK125: 6.4 | AL125: 87
AK126: 6.5 | AL126: 87
AK127: 6.5 | AL127: 110
AK128: 6.6 | AL128: 110
AK129: 6.6 | AL129: 112
AK130: 6.7 | AL130: 112
AK131: 6.7 | AL131: 118
AK132: 6.8 | AL132: 118
AK133: 6.8 | AL133: 75
AK134: 6.9 | AL134: 75
AK135: 6.9 | AL135: 74
AK136: 7 | AL136: 74
AK137: 7 | AL137: 68
AK138: 7.1 | AL138: 68
AK139: 7.1 | AL139: 60
AK140: 7.2 | AL140: 60
AK141: 7.2 | AL141: 36
AK142: 7.3 | AL142: 36
AK143: 7.3 | AL143: 29
AK144: 7.4 | AL144: 29
AK145: 7.4 | AL145: 12
AK146: 7.5 | AL146: 12
AK147: 7.5 | AL147: 5
AK148: 7.6 | AL148: 5
AK149: 7.6 | AL149: 4
AK150: 7.7 | AL150: 4
AK151: 7.7 | AL151: 5
AK152: 7.8 | AL152: 5
AK153: 7.8 | AL153: 1
AK154: 7.9 | AL154: 1
AK155: 7.9 | AL155: 1
AK156: 8 | AL156: 1
AK157: 8 | AL157: 0
AK158: 8.1 | AL158: 0
AK159: 8.1 | AL159: 0
AK160: 8.2 | AL160: 0
AK161: 8.2 | AL161: 0
AK162: 8.3 | AL162: 0
AK163: 8.3 | AL163: 0
AK164: 8.4 | AL164: 0
AK165: 8.4 | AL165: 1
AK166: 8.5 | AL166: 1
AK167: 8.5 | AL167: 0

Sheet MCSim8 (hidden)
A1: Results of Monte Carlo Simulation | AL1: $F$1 | AM1: LiveOLSOrthoEIV!$O$16
A2: Sample Number | B2: $F$1 | C2: LiveOLSOrthoEIV!$O$16 | F2: Simulation Stats | AH2: 5.6 | AK2: 5.6 | AL2: 0 | AM2: 0
A3: 1 | B3: 6.902446413 | C3: 9.983459554 | F3: 1000 | G3: repetitions | AH3: 5.7 | AK3: 5.6 | AL3: 1 | AM3: 0
A4: 2 | B4: 6.587585818 | C4: 9.214273928 | F4: 1.999999839 | G4: secs | I4: $F$1 | K4: LiveOLSOrthoEIV!$O$16 | M4: Notes | AH4: 5.8 | AK4: 5.7 | AL4: 1 | AM4: 0
A5: 3 | B5: 7.477800875 | C5: 10.80856885 | I5: Average | J5: 6.70875192 | K5: Average | L5: 10.05327997 | M5: With EIV, Ortho unbiased | AH5: 5.9 | AK5: 5.7 | AL5: 1 | AM5: 0
A6: 4 | B6: 7.07124531 | C6: 10.92485705 | I6: SD | J6: 0.3400209018 | K6: SD | L6: 0.7238411946 | AH6: 6 | AK6: 5.8 | AL6: 1 | AM6: 0
A7: 5 | B7: 6.462909289 | C7: 10.35549285 | I7: Max | J7: 8.093059732 | K7: Max | L7: 12.8311019 | AH7: 6.1 | AK7: 5.8 | AL7: 4 | AM7: 0
A8: 6 | B8: 6.876091698 | C8: 9.751772524 | I8: Min | J8: 5.675489763 | K8: Min | L8: 7.987175881 | AH8: 6.2 | AK8: 5.9 | AL8: 4 | AM8: 0
A9: 7 | B9: 6.903816086 | C9: 11.4262447 | AH9: 6.3 | AK9: 5.9 | AL9: 5 | AM9: 0
A10: 8 | B10: 6.858953063 | C10: 10.19581868 | AH10: 6.4 | AK10: 6 | AL10: 5 | AM10: 0
A11: 9 | B11: 6.115143278 | C11: 9.639180588 | AH11: 6.5 | AK11: 6 | AL11: 16 | AM11: 0
A12: 10 | B12: 6.703872471 | C12: 9.810288076 | AH12: 6.6 | AK12: 6.1 | AL12: 16 | AM12: 0
A13: 11 | B13: 6.763205395 | C13: 9.538959749 | AH13: 6.7 | AK13: 6.1 | AL13: 29 | AM13: 0
A14: 12 | B14: 6.855060456 | C14: 10.74234074 | AH14: 6.8 | AK14: 6.2 | AL14: 29 | AM14: 0
A15: 13 | B15: 6.736271714 | C15: 9.427222918 | AH15: 6.9 | AK15: 6.2 | AL15: 61 | AM15: 0
A16: 14 | B16: 6.736389282 | C16: 9.59250521 | AH16: 7 | AK16: 6.3 | AL16: 61 | AM16: 0
A17: 15 | B17: 7.391996251 | C17: 10.46961143 | AH17: 7.1 | AK17: 6.3 | AL17: 75 | AM17: 0
A18: 16 | B18: 6.865813455 | C18: 10.06312056 | AH18: 7.2 | AK18: 6.4 | AL18: 75 | AM18: 0
A19: 17 | B19: 6.435021962 | C19: 10.05991077 | F19: 1 | AH19: 7.3 | AK19: 6.4 | AL19: 88 | AM19: 0
A20: 18 | B20: 6.356034841 | C20: 8.67826168 | AH20: 7.4 | AK20: 6.5 | AL20: 88 | AM20: 0
A21: 19 | B21: 6.774410019 | C21: 9.971878263 | AH21: 7.5 | AK21: 6.5 | AL21: 104 | AM21: 0
A22: 20 | B22: 6.60072826 | C22: 9.557434009 | AH22: 7.6 | AK22: 6.6 | AL22: 104 | AM22: 0
A23: 21 | B23: 7.388289638 | C23: 9.794907065 | AH23: 7.7 | AK23: 6.6 | AL23: 111 | AM23: 0
A24: 22 | B24: 6.628573916 | C24: 8.405374153 | AH24: 7.8 | AK24: 6.7 | AL24: 111 | AM24: 0
A25: 23 | B25: 6.606774244 | C25: 9.68160624 | AH25: 7.9 | AK25: 6.7 | AL25: 106 | AM25: 0
A26: 24 | B26: 7.030267843 | C26: 10.99735764 | AH26: 8 | AK26: 6.8 | AL26: 106 | AM26: 0
A27: 25 | B27: 6.722532713 | C27: 10.11620318 | AH27: 8.1 | AK27: 6.8 | AL27: 134 | AM27: 0
A28: 26 | B28: 6.53946299 | C28: 9.902661521 | AK28: 6.9 | AL28: 134 | AM28: 0
A29: 27 | B29: 6.457053967 | C29: 9.606427144 | AK29: 6.9 | AL29: 73 | AM29: 0
A30: 28 | B30: 6.880830337 | C30: 10.33234722 | AK30: 7 | AL30: 73 | AM30: 0
A31: 29 | B31: 6.158301142 | C31: 10.01800684 | AK31: 7 | AL31: 65 | AM31: 0
A32: 30 | B32: 6.758928289 | C32: 10.40134373 | AK32: 7.1 | AL32: 65 | AM32: 0
A33: 31 | B33: 7.029474024 | C33: 9.17780217 | AK33: 7.1 | AL33: 51 | AM33: 0
A34: 32 | B34: 5.948503459 | C34: 9.666789622 | AK34: 7.2 | AL34: 51 | AM34: 0
A35: 33 | B35: 7.18079501 | C35: 10.73429326 | AK35: 7.2 | AL35: 29 | AM35: 0
A36: 34 | B36: 6.459050076 | C36: 8.911596191 | AK36: 7.3 | AL36: 29 | AM36: 0
A37: 35 | B37: 6.804830785 | C37: 10.36853703 | AK37: 7.3 | AL37: 25 | AM37: 0
A38: 36 | B38: 7.173827778 | C38: 9.67023964 | AK38: 7.4 | AL38: 25 | AM38: 0
A39: 37 | B39: 6.583173215 | C39: 9.959937695 | AK39: 7.4 | AL39: 8 | AM39: 0
A40: 38 | B40: 6.434615021 | C40: 9.282973186 | AK40: 7.5 | AL40: 8 | AM40: 0
A41: 39 | B41: 6.26145578 | C41: 10.25310028 | AK41: 7.5 | AL41: 8 | AM41: 0
A42: 40 | B42: 6.856007 | C42: 10.09211355 | AK42: 7.6 | AL42: 8 | AM42: 0
A43: 41 | B43: 7.170037192 | C43: 11.46292799 | AK43: 7.6 | AL43: 1 | AM43: 0
A44: 42 | B44: 6.875024343 | C44: 9.730405069 | AK44: 7.7 | AL44: 1 | AM44: 0
A45: 43 | B45: 6.562965786 | C45: 8.784705503 | AK45: 7.7 | AL45: 1 | AM45: 0
A46: 44 | B46: 6.486461064 | C46: 10.04094302 | AK46: 7.8 | AL46: 1 | AM46: 0
A47: 45 | B47: 6.558059439 | C47: 9.431495864 | AK47: 7.8 | AL47: 3 | AM47: 0
A48: 46 | B48: 6.742520931 | C48: 10.15201057 | AK48: 7.9 | AL48: 3 | AM48: 0
A49: 47 | B49: 6.012523387 | C49: 9.183805734 | AK49: 7.9 | AL49: 0 | AM49: 1
A50: 48 | B50: 7.451959031 | C50: 10.94201275 | AK50: 8 | AL50: 0 | AM50: 1
A51: 49 | B51: 7.129119141 | C51: 10.35013619 | AK51: 8 | AL51: 1 | AM51: 0
A52: 50 | B52: 7.205714381 | C52: 11.61794808 | AK52: 8.1 | AL52: 1 | AM52: 0
A53: 51 | B53: 6.86818663 | C53: 11.29626012 | AK53: 8.1 | AL53: 0 | AM53: 0
A54: 52 | B54: 6.329253471 | C54: 9.316176213 | AK54: 8.2 | AM54: 0
A55: 53 | B55: 6.895643267 | C55: 10.5475795 | AK55: 8.2 | AM55: 0
A56: 54 | B56: 7.315460466 | C56: 11.97359971 | AK56: 8.3 | AM56: 0
A57: 55 | B57: 6.680124535 | C57: 9.475560383 | AK57: 8.3 | AM57: 0
A58: 56 | B58: 6.826768543 | C58: 10.71734085 | AK58: 8.4 | AM58: 0
A59: 57 | B59: 6.139083772 | C59: 10.34032229 | AK59: 8.4 | AM59: 5
A60: 58 | B60: 7.040699908 | C60: 10.19080166 | AK60: 8.5 | AM60: 5
A61: 59 | B61: 6.392245685 | C61: 10.74791507 | AK61: 8.5 | AM61: 3
A62: 60 | B62: 6.517155628 | C62: 9.227855146 | AK62: 8.6 | AM62: 3
A63: 61 | B63: 7.124228479 | C63: 10.17148599 | AK63: 8.6 | AM63: 9
A64: 62 | B64: 6.776499716 | C64: 10.44931703 | AK64: 8.7 | AM64: 9
A65: 63 | B65: 6.775529051 | C65: 10.71470261 | AK65: 8.7 | AM65: 7
A66: 64 | B66: 6.889843319 | C66: 10.09762195 | AK66: 8.8 | AM66: 7
A67: 65 | B67: 7.037742498 | C67: 11.48165167 | AK67: 8.8 | AM67: 15
A68: 66 | B68: 6.753337495 | C68: 9.86609722 | AK68: 8.9 | AM68: 15
A69: 67 | B69: 6.287321198 | C69: 9.255117217 | AK69: 8.9 | AM69: 24
A70: 68 | B70: 6.531091498 | C70: 9.367237757 | AK70: 9 | AM70: 24
A71: 69 | B71: 6.316316846 | C71: 9.13872184 | AK71: 9 | AM71: 23
A72: 70 | B72: 6.302390921 | C72: 9.091735075 | AK72: 9.1 | AM72: 23
A73: 71 | B73: 6.994978111 | C73: 10.12297627 | AK73: 9.1 | AM73: 26
A74: 72 | B74: 6.358596431 | C74: 10.98620503 | AK74: 9.2 | AM74: 26
A75: 73 | B75: 7.718959827 | C75: 11.24302657 | AK75: 9.2 | AM75: 39
A76: 74 | B76: 6.437769452 | C76: 9.255853483 | AK76: 9.3 | AM76: 39
A77: 75 | B77: 6.661321785 | C77: 10.2855079 | AK77: 9.3 | AM77: 32
A78: 76 | B78: 6.820508867 | C78: 10.49091381 | AK78: 9.4 | AM78: 32
A79: 77 | B79: 6.530820049 | C79: 10.35871601 | AK79: 9.4 | AM79: 49
A80: 78 | B80: 6.953448276 | C80: 10.96536217 | AK80: 9.5 | AM80: 49
A81: 79 | B81: 7.606246289 | C81: 11.13128124 | AK81: 9.5 | AM81: 48
A82: 80 | B82: 6.658969872 | C82: 9.762473818 | AK82: 9.6 | AM82: 48
A83: 81 | B83: 6.249399131 | C83: 8.979843956 | AK83: 9.6 | AM83: 53
A84: 82 | B84: 6.129163817 | C84: 9.996669602 | AK84: 9.7 | AM84: 53
A85: 83 | B85: 5.981866734 | C85: 8.630960783 | AK85: 9.7 | AM85: 51
A86: 84 | B86: 6.665420021 | C86: 9.672895271 | AK86: 9.8 | AM86: 51
A87: 85 | B87: 6.765698112 | C87: 10.46707057 | AK87: 9.8 | AM87: 53
A88: 86 | B88: 7.210751644 | C88: 10.7227928 | AK88: 9.9 | AM88: 53
A89: 87 | B89: 7.075195235 | C89: 9.279872078 | AK89: 9.9 | AM89: 62
A90: 88 | B90: 6.36430237 | C90: 8.579080666 | AK90: 10 | AM90: 62
A91: 89 | B91: 6.23361517 | C91: 8.755994966 | AK91: 10 | AM91: 46
A92: 90 | B92: 6.695349639 | C92: 9.675137014 | AK92: 10.1 | AM92: 46
A93: 91 | B93: 6.73369098 | C93: 10.98845925 | AK93: 10.1 | AM93: 64
A94: 92 | B94: 7.371442718 | C94: 10.45023728 | AK94: 10.2 | AM94: 64
A95: 93 | B95: 6.666594793 | C95: 10.07339123 | AK95: 10.2 | AM95: 43
A96: 94 | B96: 6.174598238 | C96: 8.844291745 | AK96: 10.3 | AM96: 43
A97: 95 | B97: 6.475984265 | C97: 10.83551539 | AK97: 10.3 | AM97: 52
A98: 96 | B98: 7.233048805 | C98: 10.37992321 | AK98: 10.4 | AM98: 52
A99: 97 | B99: 6.635108158 | C99: 9.584265714 | AK99: 10.4 | AM99: 44
A100: 98 | B100: 6.883785682 | C100: 11.8331556 | AK100: 10.5 | AM100: 44
A101: 99 | B101: 6.337951224 | C101: 10.22183913 | AK101: 10.5 | AM101: 28
A102: 100 | B102: 6.920718818 | C102: 10.073608 | AK102: 10.6 | AM102: 28
A103: Only the first 100 repetitions are displayed on this worksheet. | AK103: 10.6 | AM103: 37
AK104: 10.7 | AM104: 37
AK105: 10.7 | AM105: 36
AK106: 10.8 | AM106: 36
AK107: 10.8 | AM107: 31
AK108: 10.9 | AM108: 31
AK109: 10.9 | AM109: 25
AK110: 11 | AM110: 25
AK111: 11 | AM111: 14
AK112: 11.1 | AM112: 14
AK113: 11.1 | AM113: 13
AK114: 11.2 | AM114: 13
AK115: 11.2 | AM115: 14
AK116: 11.3 | AM116: 14
AK117: 11.3 | AM117: 11
AK118: 11.4 | AM118: 11
AK119: 11.4 | AM119: 12
AK120: 11.5 | AM120: 12
AK121: 11.5 | AM121: 6
AK122: 11.6 | AM122: 6
AK123: 11.6 | AM123: 3
AK124: 11.7 | AM124: 3
AK125: 11.7 | AM125: 6
AK126: 11.8 | AM126: 6
AK127: 11.8 | AM127: 4
AK128: 11.9 | AM128: 4
AK129: 11.9 | AM129: 3
AK130: 12 | AM130: 3
AK131: 12 | AM131: 1
AK132: 12.1 | AM132: 1
AK133: 12.1 | AM133: 2
AK134: 12.2 | AM134: 2
AK135: 12.2 | AM135: 1
AK136: 12.3 | AM136: 1
AK137: 12.3 | AM137: 1
AK138: 12.4 | AM138: 1
AK139: 12.4 | AM139: 1
AK140: 12.5 | AM140: 1
AK141: 12.5 | AM141: 0
AK142: 12.6 | AM142: 0
AK143: 12.6 | AM143: 0
AK144: 12.7 | AM144: 0
AK145: 12.7 | AM145: 1
AK146: 12.8 | AM146: 1
AK147: 12.8 | AM147: 1
AK148: 12.9 | AM148: 1
AK149: 12.9 | AM149: 0
